Workbook

Sheet Sheet1
C2: Current Age | D2: 35
C3: Age at Exit | D3: 75 | I3: Probability | M3: Success | N3: Prob.fail
C4: Chart end Age: | D4: =BC18 -> 86
C5: Open Value | D5: 470000 | I5: 0.005 | M5: =NORMSDIST(O5) -> 0.9990323968 | N5: =1-M5 -> 0.0009676032132 | O5: 3.1 | P5: 1 | R5: =N5 -> 0.0009676032132 | S5: a
C6: Contributions | D6: 23000 | I6: 0.01 | M6: 0.9949879957 | N6: 0.005012004332 | O6: 2.575 | P6: 2 | R6: 0.005012004332 | S6: b
C7: Contributions end at age: | D7: 60 | I7: 0.02 | M7: 0.9900439482 | N7: 0.009956051834 | O7: 2.328 | P7: 3 | R7: 0.009956051834 | S7: c
C8: Withdrawals | D8: 64000 | M8: 0.9750021049 | N8: 0.02499789515 | O8: 1.96 | P8: 4 | R8: 0.02499789515 | S8: d
C9: Withdrawals begin at age: | D9: 64 | M9: 0.9500150945 | N9: 0.04998490554 | O9: 1.645 | P9: 5 | R9: 0.04998490554 | S9: e
C10: Max Leverage | D10: 0.75 | M10: 0.9000084999 | N10: 0.0999915001 | O10: 1.2816 | P10: 6 | R10: 0.0999915001 | S10: f
C11: Cost of Borrowing (Margin over RFR) | D11: 0.04
C12: Accepted Probability of Failure | D12: 0.0999915001 | M12: 0.8500388433 | N12: 0.1499611567 | O12: 1.0366 | P12: 6 | R12: =N12 -> 0.1499611567 | S12: g
C13: Std Deviation | D13: =VLOOKUP(D12,N5:O12,2) -> 1.2816
C15: CPI
C16: 0.03
C18: A | D18: =D2 -> 35 | E18: =D18+1 -> 36 | F18: =E18+1 -> 37 | G18: 38 | H18: 39 | I18: 40 | J18: 41 | K18: 42 | L18: 43 | M18: =L18+1 -> 44 | N18: 45 | O18: 46 | P18: 47 | Q18: 48 | R18: 49 | S18: 50 | T18: 51 | U18: 52 | V18: 53 | W18: 54 | X18: 55 | Y18: 56 | Z18: 57 | AA18: 58 | AB18: 59 | AC18: 60 | AD18: 61 | AE18: 62 | AF18: 63 | AG18: 64 | AH18: 65 | AI18: 66 | AJ18: 67 | AK18: =AJ18+1 -> 68 | AL18: 69 | AM18: 70 | AN18: 71 | AO18: 72 | AP18: 73 | AQ18: 74 | AR18: 75 | AS18: 76 | AT18: 77 | AU18: 78 | AV18: =AU18+1 -> 79 | AW18: 80 | AX18: 81 | AY18: 82 | AZ18: 83 | BA18: 84 | BB18: 85 | BC18: =BB18+1 -> 86 | BD18: 87 | BE18: 88 | BF18: 89 | BG18: 90 | BH18: 91 | BI18: 92 | BJ18: 93 | BK18: 94 | BL18: 95 | BM18: 96 | BN18: 97 | BO18: 98 | BP18: 99 | BQ18: 100
C19: Years till X (85) | D19: =$D3-D18 -> 40 | E19: 39 | F19: 38 | G19: 37 | H19: 36 | I19: 35 | J19: 34 | K19: 33 | L19: 32 | M19: 31 | N19: 30 | O19: 29 | P19: 28 | Q19: 27 | R19: 26 | S19: 25 | T19: 24 | U19: 23 | V19: 22 | W19: 21 | X19: 20 | Y19: 19 | Z19: 18 | AA19: 17 | AB19: 16 | AC19: 15 | AD19: 14 | AE19: 13 | AF19: 12 | AG19: 11 | AH19: 10 | AI19: 9 | AJ19: =$D3-AJ18 -> 8 | AK19: 7 | AL19: 6 | AM19: 5 | AN19: 4 | AO19: 3 | AP19: 2 | AQ19: 1 | AR19: 0 | AS19: -1 | AT19: -2 | AU19: -3 | AV19: -4 | AW19: -5 | AX19: -6 | AY19: -7 | AZ19: -8 | BA19: -9 | BB19: -10 | BC19: -11 | BD19: -12 | BE19: -13 | BF19: -14 | BG19: -15 | BH19: -16 | BI19: -17 | BJ19: -18 | BK19: -19 | BL19: -20 | BM19: -21 | BN19: -22 | BO19: -23 | BP19: =$D3-BP18 -> -24 | BQ19: =$D3-BQ18 -> -25
C20: Years till X (85) | D20: =MAX(D19,0.25) -> 40 | E20: =MAX(E19,0.25) -> 39 | F20: 38 | G20: 37 | H20: 36 | I20: 35 | J20: 34 | K20: 33 | L20: 32 | M20: 31 | N20: 30 | O20: 29 | P20: 28 | Q20: 27 | R20: 26 | S20: 25 | T20: 24 | U20: 23 | V20: 22 | W20: 21 | X20: 20 | Y20: 19 | Z20: 18 | AA20: 17 | AB20: 16 | AC20: 15 | AD20: 14 | AE20: 13 | AF20: 12 | AG20: 11 | AH20: 10 | AI20: 9 | AJ20: 8 | AK20: 7 | AL20: 6 | AM20: 5 | AN20: 4 | AO20: =MAX(AO19,1) -> 3 | AP20: 2 | AQ20: 1 | AR20: 0.25 | AS20: 0.25 | AT20: 0.25 | AU20: 0.25 | AV20: =MAX(AV19,0.25) -> 0.25 | AW20: 0.25 | AX20: 0.25 | AY20: 0.25 | AZ20: 0.25 | BA20: 0.25 | BB20: 0.25 | BC20: 0.25 | BD20: 0.25 | BE20: 0.25 | BF20: 0.25 | BG20: 0.25 | BH20: 0.25 | BI20: 0.25 | BJ20: 0.25 | BK20: 0.25 | BL20: 0.25 | BM20: 0.25 | BN20: 0.25 | BO20: 0.25 | BP20: 0.25 | BQ20: 0.25
C21: Potential Return (no leverage) | D21: =MAX(D37:D44) -> 0.09874105181 | E21: =MAX(E37:E44) -> 0.09859479051 | F21: =MAX(F37:F44) -> 0.09843076463 | G21: 0.09824667604 | H21: 0.09803990292 | I21: 0.0978074489 | J21: 0.09754588347 | K21: 0.09725127145 | L21: 0.09691908961 | M21: 0.09654412767 | N21: 0.09612037026 | O21: 0.09564085591 | P21: 0.09509750784 | Q21: 0.09448093025 | R21: 0.09378016211 | S21: 0.09298237853 | T21: 0.09207252702 | U21: 0.09103288261 | V21: 0.08984250172 | W21: 0.08847654861 | X21: 0.08690546127 | Y21: 0.08509391409 | Z21: 0.08299952185 | AA21: 0.08057121335 | AB21: 0.0777471807 | AC21: 0.07445228019 | AD21: 0.07059471842 | AE21: 0.06710565256 | AF21: 0.06387778391 | AG21: 0.06010320374 | AH21: 0.05566362676 | AI21: 0.05040525656 | AJ21: 0.0441226198 | AK21: 0.03653101634 | AL21: 0.03067721151 | AM21: 0.02740678633 | AN21: 0.02662836984 | AO21: 0.02551197583 | AP21: 0.025 | AQ21: 0.025 | AR21: 0.025 | AS21: 0.025 | AT21: 0.025 | AU21: 0.025 | AV21: 0.025 | AW21: 0.025 | AX21: 0.025 | AY21: 0.025 | AZ21: 0.025 | BA21: 0.025 | BB21: 0.025 | BC21: 0.025 | BD21: 0.025 | BE21: 0.025 | BF21: 0.025 | BG21: 0.025 | BH21: 0.025 | BI21: 0.025 | BJ21: 0.025 | BK21: 0.025 | BL21: 0.025 | BM21: 0.025 | BN21: 0.025 | BO21: 0.025 | BP21: 0.025 | BQ21: 0.025
C22: Target Exit 10 years later | D22: =$D$21 -> 0.09874105181 | E22: 0.09874105181 | F22: 0.09874105181 | G22: 0.09874105181 | H22: 0.09874105181 | I22: 0.09874105181 | J22: 0.09874105181 | K22: 0.09874105181 | L22: 0.09874105181 | M22: 0.09874105181 | N22: =D21 -> 0.09874105181 | O22: 0.09859479051 | P22: 0.09843076463 | Q22: 0.09824667604 | R22: 0.09803990292 | S22: 0.0978074489 | T22: 0.09754588347 | U22: 0.09725127145 | V22: 0.09691908961 | W22: 0.09654412767 | X22: 0.09612037026 | Y22: 0.09564085591 | Z22: 0.09509750784 | AA22: 0.09448093025 | AB22: 0.09378016211 | AC22: 0.09298237853 | AD22: 0.09207252702 | AE22: 0.09103288261 | AF22: 0.08984250172 | AG22: 0.08847654861 | AH22: 0.08690546127 | AI22: 0.08509391409 | AJ22: 0.08299952185 | AK22: 0.08057121335 | AL22: 0.0777471807 | AM22: 0.07445228019 | AN22: 0.07059471842 | AO22: 0.06710565256 | AP22: 0.06387778391 | AQ22: 0.06010320374 | AR22: 0.05566362676 | AS22: 0.05040525656 | AT22: =AJ21 -> 0.0441226198 | AU22: 0.03653101634 | AV22: 0.03067721151 | AW22: 0.02740678633 | AX22: 0.02662836984 | AY22: 0.02551197583 | AZ22: 0.025 | BA22: 0.025 | BB22: 0.025 | BC22: 0.025 | BD22: 0.025 | BE22: 0.025 | BF22: 0.025 | BG22: 0.025 | BH22: 0.025 | BI22: 0.025 | BJ22: 0.025 | BK22: 0.025 | BL22: 0.025 | BM22: 0.025 | BN22: 0.025 | BO22: 0.025 | BP22: 0.025 | BQ22: 0.025
C23: Target Exit 10 years earlier | D23: =N21 -> 0.09612037026 | E23: =O21 -> 0.09564085591 | F23: 0.09509750784 | G23: 0.09448093025 | H23: 0.09378016211 | I23: 0.09298237853 | J23: 0.09207252702 | K23: 0.09103288261 | L23: 0.08984250172 | M23: 0.08847654861 | N23: 0.08690546127 | O23: 0.08509391409 | P23: 0.08299952185 | Q23: 0.08057121335 | R23: =AB21 -> 0.0777471807 | S23: 0.07445228019 | T23: 0.07059471842 | U23: 0.06710565256 | V23: 0.06387778391 | W23: 0.06010320374 | X23: 0.05566362676 | Y23: 0.05040525656 | Z23: 0.0441226198 | AA23: 0.03653101634 | AB23: 0.03067721151 | AC23: 0.02740678633 | AD23: 0.02662836984 | AE23: 0.02551197583 | AF23: 0.025 | AG23: 0.025 | AH23: 0.025 | AI23: 0.025 | AJ23: 0.025 | AK23: 0.025 | AL23: 0.025 | AM23: 0.025 | AN23: 0.025 | AO23: 0.025 | AP23: 0.025 | AQ23: 0.025 | AR23: 0.025 | AS23: 0.025 | AT23: 0.025 | AU23: 0.025 | AV23: 0.025 | AW23: 0.025 | AX23: =BH21 -> 0.025 | AY23: 0.025 | AZ23: 0.025 | BA23: 0.025 | BB23: 0.025 | BC23: 0.025 | BD23: 0.025 | BE23: 0.025 | BF23: 0.025 | BG23: 0.025 | BH23: 0 | BI23: 0 | BJ23: 0 | BK23: 0 | BL23: 0 | BM23: 0 | BN23: 0 | BO23: 0 | BP23: 0 | BQ23: 0
C24: Potential Return (with leverage) | D24: =((D21-D45)*D47)+D21 -> 0.1202968407 | E24: =((E21-E45)*E47)+E21 -> 0.1200408834 | F24: 0.1197538381 | G24: 0.1194316831 | H24: 0.1190698301 | I24: 0.1186630356 | J24: 0.1182052961 | K24: 0.117689725 | L24: 0.1171084068 | M24: 0.1164522234 | N24: 0.115710648 | O24: 0.1148714978 | P24: 0.1139206387 | Q24: 0.1128416279 | R24: 0.1116152837 | S24: 0.1102191624 | T24: 0.1086269223 | U24: 0.1068075446 | V24: 0.104724378 | W24: 0.1023339601 | X24: 0.09958455722 | Y24: 0.09641434966 | Z24: 0.09274916323 | AA24: 0.08691394135 | AB24: 0.08123341201 | AC24: 0.07578796425 | AD24: 0.07068392618 | AE24: 0.06710565256 | AF24: 0.06387778391 | AG24: 0.06010320374 | AH24: 0.05566362676 | AI24: 0.05040525656 | AJ24: 0.0441226198 | AK24: 0.03653101634 | AL24: 0.03067721151 | AM24: 0.02740678633 | AN24: 0.02662836984 | AO24: 0.02551197583 | AP24: 0.025 | AQ24: 0.025 | AR24: 0.025 | AS24: 0.025 | AT24: 0.025 | AU24: 0.025 | AV24: 0.025 | AW24: 0.025 | AX24: 0.025 | AY24: 0.025 | AZ24: 0.025 | BA24: 0.025 | BB24: 0.025 | BC24: 0.025 | BD24: 0.025 | BE24: 0.025 | BF24: 0.025 | BG24: 0.025 | BH24: 0.025 | BI24: 0.025 | BJ24: 0.025 | BK24: 0.025 | BL24: 0.025 | BM24: 0.025 | BN24: 0.025 | BO24: 0.025 | BP24: 0.025 | BQ24: =((BQ21-BQ45)*BQ47)+BQ21 -> 0.025
C25: Potential Return (with Leverage) -defer | D25: =E25 -> 0.1202968407 | E25: 0.1202968407 | F25: 0.1202968407 | G25: 0.1202968407 | H25: 0.1202968407 | I25: 0.1202968407 | J25: 0.1202968407 | K25: 0.1202968407 | L25: 0.1202968407 | M25: =N25 -> 0.1202968407 | N25: =D24 -> 0.1202968407 | O25: =E24 -> 0.1200408834 | P25: 0.1197538381 | Q25: 0.1194316831 | R25: 0.1190698301 | S25: 0.1186630356 | T25: 0.1182052961 | U25: 0.117689725 | V25: 0.1171084068 | W25: 0.1164522234 | X25: 0.115710648 | Y25: 0.1148714978 | Z25: 0.1139206387 | AA25: 0.1128416279 | AB25: 0.1116152837 | AC25: 0.1102191624 | AD25: 0.1086269223 | AE25: 0.1068075446 | AF25: 0.104724378 | AG25: 0.1023339601 | AH25: 0.09958455722 | AI25: 0.09641434966 | AJ25: 0.09274916323 | AK25: 0.08691394135 | AL25: 0.08123341201 | AM25: 0.07578796425 | AN25: 0.07068392618 | AO25: 0.06710565256 | AP25: 0.06387778391 | AQ25: 0.06010320374 | AR25: 0.05566362676 | AS25: 0.05040525656 | AT25: 0.0441226198 | AU25: 0.03653101634 | AV25: 0.03067721151 | AW25: 0.02740678633 | AX25: 0.02662836984 | AY25: 0.02551197583 | AZ25: 0.025 | BA25: 0.025 | BB25: 0.025 | BC25: 0.025 | BD25: 0.025 | BE25: 0.025 | BF25: 0.025 | BG25: 0.025 | BH25: 0.025 | BI25: 0.025 | BJ25: 0.025 | BK25: 0.025 | BL25: 0.025 | BM25: 0.025 | BN25: 0.025 | BO25: 0.025 | BP25: 0.025 | BQ25: 0.025
C27: Contributions | D27: =IF(D18<($D$7+1),$D$6,0) -> 23000 | E27: =IF(E18<($D$7+1),$D$6,0) -> 23000 | F27: 23000 | G27: 23000 | H27: 23000 | I27: 23000 | J27: 23000 | K27: 23000 | L27: 23000 | M27: 23000 | N27: 23000 | O27: 23000 | P27: 23000 | Q27: 23000 | R27: 23000 | S27: 23000 | T27: 23000 | U27: 23000 | V27: 23000 | W27: 23000 | X27: 23000 | Y27: 23000 | Z27: 23000 | AA27: 23000 | AB27: 23000 | AC27: 23000 | AD27: 0 | AE27: 0 | AF27: 0 | AG27: 0 | AH27: 0 | AI27: 0 | AJ27: 0 | AK27: 0 | AL27: 0 | AM27: 0 | AN27: 0 | AO27: 0 | AP27: 0 | AQ27: 0 | AR27: 0 | AS27: 0 | AT27: 0 | AU27: 0 | AV27: 0 | AW27: 0 | AX27: 0 | AY27: 0 | AZ27: 0 | BA27: 0 | BB27: 0 | BC27: 0 | BD27: 0 | BE27: 0 | BF27: 0 | BG27: 0 | BH27: 0 | BI27: 0 | BJ27: 0 | BK27: 0 | BL27: 0 | BM27: 0 | BN27: 0 | BO27: 0 | BP27: 0 | BQ27: 0
C28: Withdrawals | D28: =IF(D18>($D$9-1),$D$8,0) -> 0 | E28: =IF(E18>($D$9-1),$D$8,0) -> 0 | F28: 0 | G28: 0 | H28: 0 | I28: 0 | J28: 0 | K28: 0 | L28: 0 | M28: 0 | N28: 0 | O28: 0 | P28: 0 | Q28: 0 | R28: 0 | S28: 0 | T28: 0 | U28: 0 | V28: 0 | W28: 0 | X28: 0 | Y28: 0 | Z28: 0 | AA28: 0 | AB28: 0 | AC28: 0 | AD28: 0 | AE28: 0 | AF28: 0 | AG28: 64000 | AH28: 64000 | AI28: 64000 | AJ28: 64000 | AK28: 64000 | AL28: 64000 | AM28: 64000 | AN28: 64000 | AO28: 64000 | AP28: 64000 | AQ28: 64000 | AR28: 64000 | AS28: 64000 | AT28: 64000 | AU28: 64000 | AV28: 64000 | AW28: 64000 | AX28: 64000 | AY28: 64000 | AZ28: 64000 | BA28: 64000 | BB28: 64000 | BC28: 64000 | BD28: 64000 | BE28: 64000 | BF28: 64000 | BG28: 64000 | BH28: 64000 | BI28: 64000 | BJ28: 64000 | BK28: 64000 | BL28: 64000 | BM28: 64000 | BN28: 64000 | BO28: 64000 | BP28: 64000 | BQ28: =IF(BQ18>($D$9-1),$D$8,0) -> 64000
C29: Portfolio Cash flows | D29: =D27-D28 -> 23000 | E29: =E27-E28 -> 23000 | F29: 23000 | G29: 23000 | H29: 23000 | I29: 23000 | J29: 23000 | K29: 23000 | L29: 23000 | M29: 23000 | N29: 23000 | O29: 23000 | P29: 23000 | Q29: 23000 | R29: 23000 | S29: 23000 | T29: 23000 | U29: 23000 | V29: 23000 | W29: 23000 | X29: 23000 | Y29: 23000 | Z29: 23000 | AA29: 23000 | AB29: 23000 | AC29: 23000 | AD29: 0 | AE29: 0 | AF29: 0 | AG29: -64000 | AH29: -64000 | AI29: -64000 | AJ29: -64000 | AK29: -64000 | AL29: -64000 | AM29: -64000 | AN29: -64000 | AO29: -64000 | AP29: -64000 | AQ29: -64000 | AR29: -64000 | AS29: -64000 | AT29: -64000 | AU29: -64000 | AV29: -64000 | AW29: -64000 | AX29: -64000 | AY29: -64000 | AZ29: -64000 | BA29: -64000 | BB29: -64000 | BC29: -64000 | BD29: -64000 | BE29: -64000 | BF29: -64000 | BG29: -64000 | BH29: -64000 | BI29: -64000 | BJ29: -64000 | BK29: -64000 | BL29: -64000 | BM29: -64000 | BN29: -64000 | BO29: -64000 | BP29: -64000 | BQ29: =BQ27-BQ28 -> -64000
C30: PVMax e® | D30: =($D$5)*(1+D21-$C$16) -> 502308.2943 | E30: =(D30+E29)*(1+E21-$C$16) -> 561341.7068 | F30: =(E30+F29)*(1+F21-$C$16) -> 624328.6566 | G30: 691506.6857 | H30: 763121.6512 | I30: 839426.5549 | J30: 920679.9185 | K30: 1007143.593 | L30: 1099079.864 | M30: 1196747.69 | N30: 1300397.859 | O30: 1410266.827 | P30: 1526568.926 | Q30: 1649486.571 | R30: 1779158.036 | S30: 1915662.236 | T30: 2058999.9 | U30: 2209070.355 | V30: 2365643.029 | W30: 2528322.629 | X30: 2696506.82 | Y30: 2869335.095 | Z30: 3045627.473 | AA30: 3223811.687 | AB30: 3401837.791 | AC30: 3577079.641 | AD30: 3722290.181 | AE30: 3860408.188 | AF30: 3991190.262 | AG30: 4045411.271 | AH30: 4083588.723 | AI30: 4101609.463 | AJ30: 4094631.086 | AK30: 4056955.203 | AL30: 3995659.279 | AM30: 3921463.646 | AN30: 3844457.705 | AO30: 3763490.92 | AP30: 3680993.465 | AQ30: 3598908.498 | AR30: 3517233.955 | AS30: 3435967.786 | AT30: 3355107.947 | AU30: 3274652.407 | AV30: 3194599.145 | AW30: 3114946.149 | AX30: 3035691.418 | AY30: 2956832.961 | AZ30: 2878368.796 | BA30: 2800296.952 | BB30: 2722615.468 | BC30: 2645322.39 | BD30: 2568415.778 | BE30: 2491893.7 | BF30: 2415754.231 | BG30: 2339995.46 | BH30: 2264615.483 | BI30: 2189612.405 | BJ30: 2114984.343 | BK30: 2040729.421 | BL30: 1966845.774 | BM30: 1893331.545 | BN30: 1820184.888 | BO30: 1747403.963 | BP30: 1674986.943 | BQ30: 1602932.009
C31: PVMax e® - Defer Draw 10 yr | D31: =($D$5)*(1+D22-$C$16) -> 502308.2943 | E31: =(D31+E29)*(1+E22-$C$16) -> 561418.539 | F31: =(E31+F29)*(1+F22-$C$16) -> 624592.0841 | G31: 692108.2451 | H31: 764265.538 | I31: 841382.9992 | J31: 923801.5957 | K31: 1011885.733 | L31: 1106024.867 | M31: 1206635.224 | N31: 1314161.643 | O31: 1428883.965 | P31: 1551237.495 | Q31: 1681673.972 | R31: 1820659.823 | S31: 1968673.692 | T31: 2126203.051 | U31: 2293739.689 | V31: 2471773.8 | W31: =(V31+W29)*(1+W22-$C$16) -> 2660786.346 | X31: 2861239.293 | Y31: 3073563.229 | Z31: =(Y31+Z29)*(1+Z22-$C$16) -> 3298141.778 | AA31: 3535292.09 | AB31: 3785240.536 | AC31: 4048092.583 | AD31: 4299367.919 | AE31: =(AD31+AE29)*(1+AE22-$C$16) -> 4561770.737 | AF31: 4834758.51 | AG31: =(AF31+AG29)*(1+AG22-$C$16) -> 5049736.002 | AH31: 5269451.609 | AI31: 5492240.312 | AJ31: 5715934.453 | AK31: 5937759.636 | AL31: 6154215.099 | AM31: 6360939.047 | AN31: 6552561.515 | AO31: 6729323.824 | AP31: 6891130.224 | AQ31: 7032648.716 | AR31: 7147489.516 | AS31: 7228029.937 | AT31: 7265204.808 | AU31: 7248235.994 | AV31: 7189101.241 | AW31: 7106624.331 | AX31: 7018879.207 | AY31: 6923665.541 | AZ31: 6825367.213 | BA31: 6727560.377 | BB31: 6630242.575 | BC31: 6533411.362 | BD31: 6437064.305 | BE31: 6341198.984 | BF31: 6245812.989 | BG31: 6150903.924 | BH31: 6056469.404 | BI31: 5962507.057 | BJ31: 5869014.522 | BK31: 5775989.45 | BL31: 5683429.502 | BM31: 5591332.355 | BN31: 5499695.693 | BO31: 5408517.215 | BP31: 5317794.628 | BQ31: 5227525.655
C32: PVMax e® - Bring forward draw 10 yr | D32: =($D$5)*(1+D23-$C$16) -> 501076.574 | E32: =(D32+E29)*(1+E23-$C$16) -> 558477.4089 | F32: =(E32+F29)*(1+F23-$C$16) -> 619330.1391 | G32: 683748.184 | H32: 751824.6977 | I32: 823625.0001 | J32: 899177.1533 | K32: 978460.2833 | L32: 1061390.172 | M32: 1147801.567 | N32: 1237426.57 | O32: 1329868.403 | P32: 1424569.781 | Q32: 1520775.142 | R32: 1617486.052 | S32: 1713409.398 | T32: 1806898.449 | U32: 1897798.025 | V32: 1985870.405 | W32: 2069343.84 | X32: 2146040.971 | Y32: 2213300.809 | Z32: 2267883.235 | AA32: 2305845.031 | AB32: 2330422.152 | AC32: 2347319.225 | AD32: 2339404.933 | AE32: 2328905.627 | AF32: 2317261.099 | AG32: =(AF32+AG29)*(1+AG23-$C$16) -> 2241994.793 | AH32: 2167104.819 | AI32: 2092589.295 | AJ32: 2018446.349 | AK32: 1944674.117 | AL32: 1871270.746 | AM32: 1798234.393 | AN32: 1725563.221 | AO32: 1653255.405 | AP32: 1581309.128 | AQ32: 1509722.582 | AR32: 1438493.969 | AS32: 1367621.499 | AT32: 1297103.392 | AU32: 1226937.875 | AV32: 1157123.185 | AW32: 1087657.569 | AX32: 1018539.282 | AY32: 949766.5852 | AZ32: 881337.7523 | BA32: 813251.0635 | BB32: 745504.8082 | BC32: 678097.2842 | BD32: 611026.7977 | BE32: 544291.6637 | BF32: 477890.2054 | BG32: 411820.7544 | BH32: 337386.1318 | BI32: 265184.5478 | BJ32: 195149.0114 | BK32: 127214.541 | BL32: 61318.10481 | BM32: -2601.438335 | BN32: -64603.39518 | BO32: -124745.2933 | BP32: -183082.9345 | BQ32: -239670.4465
C33: PVMax e® - Leverage | D33: =($D$5)*(1+D24-$C$16) -> 512439.5151 | E33: =(D33+E29)*(1+E24-$C$16) -> 583650.9621 | F33: =(E33+F29)*(1+F24-$C$16) -> 661100.2143 | G33: 745280.4478 | H33: 836711.0568 | I33: 935935.6488 | J33: 1043518.852 | K33: 1160041.597 | L33: 1286094.465 | M33: 1422268.592 | N33: 1569143.5 | O33: 1727271.103 | P33: 1897154.972 | Q33: 2079223.736 | R33: 2273797.323 | S33: 2481044.48 | T33: 2700929.791 | U33: 2933148.15 | V33: 3177044.482 | W33: =(V33+W29)*(1+W24-$C$16) -> 3431516.371 | X33: 3694897.364 | Y33: 3964819.099 | Z33: 4238051.411 | AA33: 4503564.641 | AB33: 4758475.992 | AC33: 5000410.044 | AD33: 5203846.357 | AE33: 5396938.472 | AF33: 5579774.787 | AG33: 5681817.279 | AH33: 5761990.845 | AI33: 5814259.81 | AJ33: 5831468.543 | AK33: 5805135.975 | AL33: 5745023.938 | AM33: 5666291.829 | AN33: 5583402.973 | AO33: 5494631.759 | AP33: 5403478.6 | AQ33: 5312781.207 | AR33: 5222537.301 | AS33: 5132744.615 | AT33: 5043400.892 | AU33: 4954503.887 | AV33: 4866051.368 | AW33: 4778041.111 | AX33: 4690470.905 | AY33: 4603338.551 | AZ33: 4516641.858 | BA33: 4430378.649 | BB33: 4344546.756 | BC33: 4259144.022 | BD33: 4174168.302 | BE33: 4089617.46 | BF33: 4005489.373 | BG33: 3921781.926 | BH33: 3838493.016 | BI33: 3755620.551 | BJ33: 3673162.449 | BK33: 3591116.636 | BL33: 3509481.053 | BM33: 3428253.648 | BN33: 3347432.38 | BO33: 3267015.218 | BP33: 3187000.142 | BQ33: 3107385.141
C34: PVMax e® - Leverage defer | D34: =($D$5)*(1+D25-$C$16) -> 512439.5151 | E34: =(D34+E29)*(1+E25-$C$16) -> 583788.0117 | F34: =(E34+F29)*(1+F25-$C$16) -> 661579.0521 | G34: 746394.3777 | H34: 838868.2592 | I34: 939692.2401 | J34: 1049620.308 | K34: 1169474.533 | L34: 1300151.216 | M34: 1442627.59 | N34: 1597969.131 | O34: 1766922.624 | P34: 1950575.049 | Q34: 2150075.188 | R34: 2366630.625 | S34: 2601502.53 | T34: =(S34+T29)*(1+T25-$C$16) -> 2855997.553 | U34: 3131456.057 | V34: 3429235.699 | W34: 3750689.151 | X34: 4097134.493 | Y34: 4469816.478 | Z34: 4869856.507 | AA34: 5298188.705 | AB34: 5755479.031 | AC34: 6242023.779 | AD34: 6732814.898 | AE34: 7249945.878 | AF34: 7791693.574 | AG34: 8286668.253 | AH34: 8794838.982 | AI34: 9310691.975 | AJ34: 9826914.159 | AK34: 10318560.08 | AL34: 10779936.18 | AM34: 11206597.09 | AN34: 11595921.69 | AO34: 11959821.16 | AP34: 12298825.22 | AQ34: 12603132.66 | AR34: 12860932.28 | AS34: 13058056.97 | AT34: 13177567.09 | AU34: 13199212.01 | AV34: 13144107.33 | AW34: 13046187.82 | AX34: 12938416.68 | AY34: 12816635.99 | AZ34: 12688872.81 | BA34: 12561748.44 | BB34: 12435259.7 | BC34: 12309403.4 | BD34: 12184176.39 | BE34: 12059575.5 | BF34: 11935597.63 | BG34: 11812239.64 | BH34: 11689498.44 | BI34: 11567370.95 | BJ34: 11445854.09 | BK34: 11324944.82 | BL34: 11204640.1 | BM34: 11084936.9 | BN34: 10965832.21 | BO34: 10847323.05 | BP34: 10729406.44 | BQ34: 10612079.41
C36: Portfolio - 3.0 SD
C37: Zero (inflation-0.5%) | D37: =$C$16-0.5% -> 0.025 | E37: =$C$16-0.5% -> 0.025 | F37: 0.025 | G37: 0.025 | H37: 0.025 | I37: 0.025 | J37: 0.025 | K37: 0.025 | L37: 0.025 | M37: 0.025 | N37: 0.025 | O37: 0.025 | P37: 0.025 | Q37: 0.025 | R37: 0.025 | S37: 0.025 | T37: 0.025 | U37: 0.025 | V37: 0.025 | W37: 0.025 | X37: 0.025 | Y37: 0.025 | Z37: 0.025 | AA37: 0.025 | AB37: 0.025 | AC37: 0.025 | AD37: 0.025 | AE37: 0.025 | AF37: 0.025 | AG37: 0.025 | AH37: 0.025 | AI37: 0.025 | AJ37: 0.025 | AK37: 0.025 | AL37: 0.025 | AM37: 0.025 | AN37: 0.025 | AO37: 0.025 | AP37: 0.025 | AQ37: 0.025 | AR37: 0.025 | AS37: 0.025 | AT37: 0.025 | AU37: 0.025 | AV37: 0.025 | AW37: 0.025 | AX37: 0.025 | AY37: 0.025 | AZ37: 0.025 | BA37: 0.025 | BB37: 0.025 | BC37: 0.025 | BD37: 0.025 | BE37: 0.025 | BF37: 0.025 | BG37: 0.025 | BH37: 0.025 | BI37: 0.025 | BJ37: 0.025 | BK37: 0.025 | BL37: 0.025 | BM37: 0.025 | BN37: 0.025 | BO37: 0.025 | BP37: 0.025 | BQ37: =$C$16-0.5% -> 0.025
C38: A | D38: =(((((1+$H$64)^(D$20))-(($H$65*(SQRT(D$20))*$D$13))))^(1/D$20))-1 -> 0.03191138676 | E38: =(((((1+$H$64)^(E$20))-(($H$65*(SQRT(E$20))*$D$13))))^(1/E$20))-1 -> 0.03188438457 | F38: =(((((1+$H$64)^(F$20))-(($H$65*(SQRT(F$20))*$D$13))))^(1/F$20))-1 -> 0.03185593202 | G38: =(((((1+$H$64)^(G$20))-(($H$65*(SQRT(G$20))*$D$13))))^(1/G$20))-1 -> 0.03182593139 | H38: =(((((1+$H$64)^(H$20))-(($H$65*(SQRT(H$20))*$D$13))))^(1/H$20))-1 -> 0.03179427625 | I38: =(((((1+$H$64)^(I$20))-(($H$65*(SQRT(I$20))*$D$13))))^(1/I$20))-1 -> 0.03176085043 | J38: =(((((1+$H$64)^(J$20))-(($H$65*(SQRT(J$20))*$D$13))))^(1/J$20))-1 -> 0.03172552684 | K38: =(((((1+$H$64)^(K$20))-(($H$65*(SQRT(K$20))*$D$13))))^(1/K$20))-1 -> 0.03168816607 | L38: =(((((1+$H$64)^(L$20))-(($H$65*(SQRT(L$20))*$D$13))))^(1/L$20))-1 -> 0.03164861482 | M38: =(((((1+$H$64)^(M$20))-(($H$65*(SQRT(M$20))*$D$13))))^(1/M$20))-1 -> 0.03160670399 | N38: =(((((1+$H$64)^(N$20))-(($H$65*(SQRT(N$20))*$D$13))))^(1/N$20))-1 -> 0.0315622465 | O38: =(((((1+$H$64)^(O$20))-(($H$65*(SQRT(O$20))*$D$13))))^(1/O$20))-1 -> 0.03151503469 | P38: =(((((1+$H$64)^(P$20))-(($H$65*(SQRT(P$20))*$D$13))))^(1/P$20))-1 -> 0.03146483723 | Q38: =(((((1+$H$64)^(Q$20))-(($H$65*(SQRT(Q$20))*$D$13))))^(1/Q$20))-1 -> 0.03141139546 | R38: =(((((1+$H$64)^(R$20))-(($H$65*(SQRT(R$20))*$D$13))))^(1/R$20))-1 -> 0.03135441888 | S38: =(((((1+$H$64)^(S$20))-(($H$65*(SQRT(S$20))*$D$13))))^(1/S$20))-1 -> 0.03129357989 | T38: =(((((1+$H$64)^(T$20))-(($H$65*(SQRT(T$20))*$D$13))))^(1/T$20))-1 -> 0.03122850716 | U38: =(((((1+$H$64)^(U$20))-(($H$65*(SQRT(U$20))*$D$13))))^(1/U$20))-1 -> 0.03115877759 | V38: =(((((1+$H$64)^(V$20))-(($H$65*(SQRT(V$20))*$D$13))))^(1/V$20))-1 -> 0.03108390635 | W38: =(((((1+$H$64)^(W$20))-(($H$65*(SQRT(W$20))*$D$13))))^(1/W$20))-1 -> 0.03100333433 | X38: =(((((1+$H$64)^(X$20))-(($H$65*(SQRT(X$20))*$D$13))))^(1/X$20))-1 -> 0.03091641235 | Y38: =(((((1+$H$64)^(Y$20))-(($H$65*(SQRT(Y$20))*$D$13))))^(1/Y$20))-1 -> 0.03082238084 | Z38: =(((((1+$H$64)^(Z$20))-(($H$65*(SQRT(Z$20))*$D$13))))^(1/Z$20))-1 -> 0.03072034372 | AA38: =(((((1+$H$64)^(AA$20))-(($H$65*(SQRT(AA$20))*$D$13))))^(1/AA$20))-1 -> 0.03060923388 | AB38: =(((((1+$H$64)^(AB$20))-(($H$65*(SQRT(AB$20))*$D$13))))^(1/AB$20))-1 -> 0.03048776736 | AC38: =(((((1+$H$64)^(AC$20))-(($H$65*(SQRT(AC$20))*$D$13))))^(1/AC$20))-1 -> 0.03035438127 | AD38: =(((((1+$H$64)^(AD$20))-(($H$65*(SQRT(AD$20))*$D$13))))^(1/AD$20))-1 -> 0.03020714803 | AE38: =(((((1+$H$64)^(AE$20))-(($H$65*(SQRT(AE$20))*$D$13))))^(1/AE$20))-1 -> 0.03004365465 | AF38: =(((((1+$H$64)^(AF$20))-(($H$65*(SQRT(AF$20))*$D$13))))^(1/AF$20))-1 -> 0.02986082842 | AG38: =(((((1+$H$64)^(AG$20))-(($H$65*(SQRT(AG$20))*$D$13))))^(1/AG$20))-1 -> 0.02965467859 | AH38: =(((((1+$H$64)^(AH$20))-(($H$65*(SQRT(AH$20))*$D$13))))^(1/AH$20))-1 -> 0.0294199007 | AI38: =(((((1+$H$64)^(AI$20))-(($H$65*(SQRT(AI$20))*$D$13))))^(1/AI$20))-1 -> 0.02914924818 | AJ38: =(((((1+$H$64)^(AJ$20))-(($H$65*(SQRT(AJ$20))*$D$13))))^(1/AJ$20))-1 -> 0.02883248824 | AK38: =(((((1+$H$64)^(AK$20))-(($H$65*(SQRT(AK$20))*$D$13))))^(1/AK$20))-1 -> 0.0284545711 | AL38: =(((((1+$H$64)^(AL$20))-(($H$65*(SQRT(AL$20))*$D$13))))^(1/AL$20))-1 -> 0.0279921957 | AM38: =(((((1+$H$64)^(AM$20))-(($H$65*(SQRT(AM$20))*$D$13))))^(1/AM$20))-1 -> 0.02740678633 | AN38: =(((((1+$H$64)^(AN$20))-(($H$65*(SQRT(AN$20))*$D$13))))^(1/AN$20))-1 -> 0.02662836984 | AO38: =(((((1+$H$64)^(AO$20))-(($H$65*(SQRT(AO$20))*$D$13))))^(1/AO$20))-1 -> 0.02551197583 | AP38: =(((((1+$H$64)^(AP$20))-(($H$65*(SQRT(AP$20))*$D$13))))^(1/AP$20))-1 -> 0.02368534667 | AQ38: =(((((1+$H$64)^(AQ$20))-(($H$65*(SQRT(AQ$20))*$D$13))))^(1/AQ$20))-1 -> 0.019684 | AR38: =(((((1+$H$64)^(AR$20))-(($H$65*(SQRT(AR$20))*$D$13))))^(1/AR$20))-1 -> 0.0064950115 | AS38: =(((((1+$H$64)^(AS$20))-(($H$65*(SQRT(AS$20))*$D$13))))^(1/AS$20))-1 -> 0.0064950115 | AT38: =(((((1+$H$64)^(AT$20))-(($H$65*(SQRT(AT$20))*$D$13))))^(1/AT$20))-1 -> 0.0064950115 | AU38: =(((((1+$H$64)^(AU$20))-(($H$65*(SQRT(AU$20))*$D$13))))^(1/AU$20))-1 -> 0.0064950115 | AV38: =(((((1+$H$64)^(AV$20))-(($H$65*(SQRT(AV$20))*$D$13))))^(1/AV$20))-1 -> 0.0064950115 | AW38: =(((((1+$H$64)^(AW$20))-(($H$65*(SQRT(AW$20))*$D$13))))^(1/AW$20))-1 -> 0.0064950115 | AX38: =(((((1+$H$64)^(AX$20))-(($H$65*(SQRT(AX$20))*$D$13))))^(1/AX$20))-1 -> 0.0064950115 | AY38: =(((((1+$H$64)^(AY$20))-(($H$65*(SQRT(AY$20))*$D$13))))^(1/AY$20))-1 -> 0.0064950115 | AZ38: =(((((1+$H$64)^(AZ$20))-(($H$65*(SQRT(AZ$20))*$D$13))))^(1/AZ$20))-1 -> 0.0064950115 | BA38: =(((((1+$H$64)^(BA$20))-(($H$65*(SQRT(BA$20))*$D$13))))^(1/BA$20))-1 -> 0.0064950115 | BB38: =(((((1+$H$64)^(BB$20))-(($H$65*(SQRT(BB$20))*$D$13))))^(1/BB$20))-1 -> 0.0064950115 | BC38: =(((((1+$H$64)^(BC$20))-(($H$65*(SQRT(BC$20))*$D$13))))^(1/BC$20))-1 -> 0.0064950115 | BD38: =(((((1+$H$64)^(BD$20))-(($H$65*(SQRT(BD$20))*$D$13))))^(1/BD$20))-1 -> 0.0064950115 | BE38: =(((((1+$H$64)^(BE$20))-(($H$65*(SQRT(BE$20))*$D$13))))^(1/BE$20))-1 -> 0.0064950115 | BF38: =(((((1+$H$64)^(BF$20))-(($H$65*(SQRT(BF$20))*$D$13))))^(1/BF$20))-1 -> 0.0064950115 | BG38: =(((((1+$H$64)^(BG$20))-(($H$65*(SQRT(BG$20))*$D$13))))^(1/BG$20))-1 -> 0.0064950115 | BH38: =(((((1+$H$64)^(BH$20))-(($H$65*(SQRT(BH$20))*$D$13))))^(1/BH$20))-1 -> 0.0064950115 | BI38: =(((((1+$H$64)^(BI$20))-(($H$65*(SQRT(BI$20))*$D$13))))^(1/BI$20))-1 -> 0.0064950115 | BJ38: =(((((1+$H$64)^(BJ$20))-(($H$65*(SQRT(BJ$20))*$D$13))))^(1/BJ$20))-1 -> 0.0064950115 | BK38: =(((((1+$H$64)^(BK$20))-(($H$65*(SQRT(BK$20))*$D$13))))^(1/BK$20))-1 -> 0.0064950115 | BL38: =(((((1+$H$64)^(BL$20))-(($H$65*(SQRT(BL$20))*$D$13))))^(1/BL$20))-1 -> 0.0064950115 | BM38: =(((((1+$H$64)^(BM$20))-(($H$65*(SQRT(BM$20))*$D$13))))^(1/BM$20))-1 -> 0.0064950115 | BN38: =(((((1+$H$64)^(BN$20))-(($H$65*(SQRT(BN$20))*$D$13))))^(1/BN$20))-1 -> 0.0064950115 | BO38: =(((((1+$H$64)^(BO$20))-(($H$65*(SQRT(BO$20))*$D$13))))^(1/BO$20))-1 -> 0.0064950115 | BP38: =(((((1+$H$64)^(BP$20))-(($H$65*(SQRT(BP$20))*$D$13))))^(1/BP$20))-1 -> 0.0064950115 | BQ38: =(((((1+$H$64)^(BQ$20))-(($H$65*(SQRT(BQ$20))*$D$13))))^(1/BQ$20))-1 -> 0.0064950115
C39: B | D39: =(((((1+$I$64)^(D$20))-(($I$65*(SQRT(D$20))*$D$13))))^(1/D$20))-1 -> 0.04844475302 | E39: =(((((1+$I$64)^(E$20))-(($I$65*(SQRT(E$20))*$D$13))))^(1/E$20))-1 -> 0.04834442358 | F39: =(((((1+$I$64)^(F$20))-(($I$65*(SQRT(F$20))*$D$13))))^(1/F$20))-1 -> 0.048236991 | G39: =(((((1+$I$64)^(G$20))-(($I$65*(SQRT(G$20))*$D$13))))^(1/G$20))-1 -> 0.04812188263 | H39: =(((((1+$I$64)^(H$20))-(($I$65*(SQRT(H$20))*$D$13))))^(1/H$20))-1 -> 0.04799847117 | I39: =(((((1+$I$64)^(I$20))-(($I$65*(SQRT(I$20))*$D$13))))^(1/I$20))-1 -> 0.04786606829 | J39: =(((((1+$I$64)^(J$20))-(($I$65*(SQRT(J$20))*$D$13))))^(1/J$20))-1 -> 0.04772391732 | K39: =(((((1+$I$64)^(K$20))-(($I$65*(SQRT(K$20))*$D$13))))^(1/K$20))-1 -> 0.04757118486 | L39: =(((((1+$I$64)^(L$20))-(($I$65*(SQRT(L$20))*$D$13))))^(1/L$20))-1 -> 0.04740695112 | M39: =(((((1+$I$64)^(M$20))-(($I$65*(SQRT(M$20))*$D$13))))^(1/M$20))-1 -> 0.0472301987 | N39: =(((((1+$I$64)^(N$20))-(($I$65*(SQRT(N$20))*$D$13))))^(1/N$20))-1 -> 0.04703979952 | O39: =(((((1+$I$64)^(O$20))-(($I$65*(SQRT(O$20))*$D$13))))^(1/O$20))-1 -> 0.04683449955 | P39: =(((((1+$I$64)^(P$20))-(($I$65*(SQRT(P$20))*$D$13))))^(1/P$20))-1 -> 0.04661290081 | Q39: =(((((1+$I$64)^(Q$20))-(($I$65*(SQRT(Q$20))*$D$13))))^(1/Q$20))-1 -> 0.04637344013 | R39: =(((((1+$I$64)^(R$20))-(($I$65*(SQRT(R$20))*$D$13))))^(1/R$20))-1 -> 0.04611436372 | S39: =(((((1+$I$64)^(S$20))-(($I$65*(SQRT(S$20))*$D$13))))^(1/S$20))-1 -> 0.04583369683 | T39: =(((((1+$I$64)^(T$20))-(($I$65*(SQRT(T$20))*$D$13))))^(1/T$20))-1 -> 0.04552920696 | U39: =(((((1+$I$64)^(U$20))-(($I$65*(SQRT(U$20))*$D$13))))^(1/U$20))-1 -> 0.04519835908 | V39: =(((((1+$I$64)^(V$20))-(($I$65*(SQRT(V$20))*$D$13))))^(1/V$20))-1 -> 0.04483826063 | W39: =(((((1+$I$64)^(W$20))-(($I$65*(SQRT(W$20))*$D$13))))^(1/W$20))-1 -> 0.04444559323 | X39: =(((((1+$I$64)^(X$20))-(($I$65*(SQRT(X$20))*$D$13))))^(1/X$20))-1 -> 0.04401652703 | Y39: =(((((1+$I$64)^(Y$20))-(($I$65*(SQRT(Y$20))*$D$13))))^(1/Y$20))-1 -> 0.04354661213 | Z39: =(((((1+$I$64)^(Z$20))-(($I$65*(SQRT(Z$20))*$D$13))))^(1/Z$20))-1 -> 0.04303063909 | AA39: =(((((1+$I$64)^(AA$20))-(($I$65*(SQRT(AA$20))*$D$13))))^(1/AA$20))-1 -> 0.04246245718 | AB39: =(((((1+$I$64)^(AB$20))-(($I$65*(SQRT(AB$20))*$D$13))))^(1/AB$20))-1 -> 0.04183473412 | AC39: =(((((1+$I$64)^(AC$20))-(($I$65*(SQRT(AC$20))*$D$13))))^(1/AC$20))-1 -> 0.04113863281 | AD39: =(((((1+$I$64)^(AD$20))-(($I$65*(SQRT(AD$20))*$D$13))))^(1/AD$20))-1 -> 0.04036336803 | AE39: =(((((1+$I$64)^(AE$20))-(($I$65*(SQRT(AE$20))*$D$13))))^(1/AE$20))-1 -> 0.0394955856 | AF39: =(((((1+$I$64)^(AF$20))-(($I$65*(SQRT(AF$20))*$D$13))))^(1/AF$20))-1 -> 0.03851847127 | AG39: =(((((1+$I$64)^(AG$20))-(($I$65*(SQRT(AG$20))*$D$13))))^(1/AG$20))-1 -> 0.03741043599 | AH39: =(((((1+$I$64)^(AH$20))-(($I$65*(SQRT(AH$20))*$D$13))))^(1/AH$20))-1 -> 0.03614311283 | AI39: =(((((1+$I$64)^(AI$20))-(($I$65*(SQRT(AI$20))*$D$13))))^(1/AI$20))-1 -> 0.03467818862 | AJ39: =(((((1+$I$64)^(AJ$20))-(($I$65*(SQRT(AJ$20))*$D$13))))^(1/AJ$20))-1 -> 0.0329621635 | AK39: =(((((1+$I$64)^(AK$20))-(($I$65*(SQRT(AK$20))*$D$13))))^(1/AK$20))-1 -> 0.0309172011 | AL39: =(((((1+$I$64)^(AL$20))-(($I$65*(SQRT(AL$20))*$D$13))))^(1/AL$20))-1 -> 0.02842404198 | AM39: =(((((1+$I$64)^(AM$20))-(($I$65*(SQRT(AM$20))*$D$13))))^(1/AM$20))-1 -> 0.02528722711 | AN39: =(((((1+$I$64)^(AN$20))-(($I$65*(SQRT(AN$20))*$D$13))))^(1/AN$20))-1 -> 0.02115569853 | AO39: =(((((1+$I$64)^(AO$20))-(($I$65*(SQRT(AO$20))*$D$13))))^(1/AO$20))-1 -> 0.01530948501 | AP39: =(((((1+$I$64)^(AP$20))-(($I$65*(SQRT(AP$20))*$D$13))))^(1/AP$20))-1 -> 0.005921067939 | AQ39: =(((((1+$I$64)^(AQ$20))-(($I$65*(SQRT(AQ$20))*$D$13))))^(1/AQ$20))-1 -> -0.01408 | AR39: =(((((1+$I$64)^(AR$20))-(($I$65*(SQRT(AR$20))*$D$13))))^(1/AR$20))-1 -> -0.07675722042 | AS39: =(((((1+$I$64)^(AS$20))-(($I$65*(SQRT(AS$20))*$D$13))))^(1/AS$20))-1 -> -0.07675722042 | AT39: =(((((1+$I$64)^(AT$20))-(($I$65*(SQRT(AT$20))*$D$13))))^(1/AT$20))-1 -> -0.07675722042 | AU39: =(((((1+$I$64)^(AU$20))-(($I$65*(SQRT(AU$20))*$D$13))))^(1/AU$20))-1 -> -0.07675722042 | AV39: =(((((1+$I$64)^(AV$20))-(($I$65*(SQRT(AV$20))*$D$13))))^(1/AV$20))-1 -> -0.07675722042 | AW39: =(((((1+$I$64)^(AW$20))-(($I$65*(SQRT(AW$20))*$D$13))))^(1/AW$20))-1 -> -0.07675722042 | AX39: =(((((1+$I$64)^(AX$20))-(($I$65*(SQRT(AX$20))*$D$13))))^(1/AX$20))-1 -> -0.07675722042 | AY39: =(((((1+$I$64)^(AY$20))-(($I$65*(SQRT(AY$20))*$D$13))))^(1/AY$20))-1 -> -0.07675722042 | AZ39: =(((((1+$I$64)^(AZ$20))-(($I$65*(SQRT(AZ$20))*$D$13))))^(1/AZ$20))-1 -> -0.07675722042 | BA39: =(((((1+$I$64)^(BA$20))-(($I$65*(SQRT(BA$20))*$D$13))))^(1/BA$20))-1 -> -0.07675722042 | BB39: =(((((1+$I$64)^(BB$20))-(($I$65*(SQRT(BB$20))*$D$13))))^(1/BB$20))-1 -> -0.07675722042 | BC39: =(((((1+$I$64)^(BC$20))-(($I$65*(SQRT(BC$20))*$D$13))))^(1/BC$20))-1 -> -0.07675722042 | BD39: =(((((1+$I$64)^(BD$20))-(($I$65*(SQRT(BD$20))*$D$13))))^(1/BD$20))-1 -> -0.07675722042 | BE39: =(((((1+$I$64)^(BE$20))-(($I$65*(SQRT(BE$20))*$D$13))))^(1/BE$20))-1 -> -0.07675722042 | BF39: =(((((1+$I$64)^(BF$20))-(($I$65*(SQRT(BF$20))*$D$13))))^(1/BF$20))-1 -> -0.07675722042 | BG39: =(((((1+$I$64)^(BG$20))-(($I$65*(SQRT(BG$20))*$D$13))))^(1/BG$20))-1 -> -0.07675722042 | BH39: =(((((1+$I$64)^(BH$20))-(($I$65*(SQRT(BH$20))*$D$13))))^(1/BH$20))-1 -> -0.07675722042 | BI39: =(((((1+$I$64)^(BI$20))-(($I$65*(SQRT(BI$20))*$D$13))))^(1/BI$20))-1 -> -0.07675722042 | BJ39: =(((((1+$I$64)^(BJ$20))-(($I$65*(SQRT(BJ$20))*$D$13))))^(1/BJ$20))-1 -> -0.07675722042 | BK39: =(((((1+$I$64)^(BK$20))-(($I$65*(SQRT(BK$20))*$D$13))))^(1/BK$20))-1 -> -0.07675722042 | BL39: =(((((1+$I$64)^(BL$20))-(($I$65*(SQRT(BL$20))*$D$13))))^(1/BL$20))-1 -> -0.07675722042 | BM39: =(((((1+$I$64)^(BM$20))-(($I$65*(SQRT(BM$20))*$D$13))))^(1/BM$20))-1 -> -0.07675722042 | BN39: =(((((1+$I$64)^(BN$20))-(($I$65*(SQRT(BN$20))*$D$13))))^(1/BN$20))-1 -> -0.07675722042 | BO39: =(((((1+$I$64)^(BO$20))-(($I$65*(SQRT(BO$20))*$D$13))))^(1/BO$20))-1 -> -0.07675722042 | BP39: =(((((1+$I$64)^(BP$20))-(($I$65*(SQRT(BP$20))*$D$13))))^(1/BP$20))-1 -> -0.07675722042 | BQ39: =(((((1+$I$64)^(BQ$20))-(($I$65*(SQRT(BQ$20))*$D$13))))^(1/BQ$20))-1 -> -0.07675722042
C40: C | D40: =(((((1+$J$64)^(D$20))-(($J$65*(SQRT(D$20))*$D$13))))^(1/D$20))-1 -> 0.05849738738 | E40: =(((((1+$J$64)^(E$20))-(($J$65*(SQRT(E$20))*$D$13))))^(1/E$20))-1 -> 0.05838484502 | F40: =(((((1+$J$64)^(F$20))-(($J$65*(SQRT(F$20))*$D$13))))^(1/F$20))-1 -> 0.05826321293 | G40: =(((((1+$J$64)^(G$20))-(($J$65*(SQRT(G$20))*$D$13))))^(1/G$20))-1 -> 0.05813167603 | H40: =(((((1+$J$64)^(H$20))-(($J$65*(SQRT(H$20))*$D$13))))^(1/H$20))-1 -> 0.05798933556 | I40: =(((((1+$J$64)^(I$20))-(($J$65*(SQRT(I$20))*$D$13))))^(1/I$20))-1 -> 0.05783519887 | J40: =(((((1+$J$64)^(J$20))-(($J$65*(SQRT(J$20))*$D$13))))^(1/J$20))-1 -> 0.05766816786 | K40: =(((((1+$J$64)^(K$20))-(($J$65*(SQRT(K$20))*$D$13))))^(1/K$20))-1 -> 0.05748702568 | L40: =(((((1+$J$64)^(L$20))-(($J$65*(SQRT(L$20))*$D$13))))^(1/L$20))-1 -> 0.05729042135 | M40: =(((((1+$J$64)^(M$20))-(($J$65*(SQRT(M$20))*$D$13))))^(1/M$20))-1 -> 0.05707685199 | N40: =(((((1+$J$64)^(N$20))-(($J$65*(SQRT(N$20))*$D$13))))^(1/N$20))-1 -> 0.05684464216 | O40: =(((((1+$J$64)^(O$20))-(($J$65*(SQRT(O$20))*$D$13))))^(1/O$20))-1 -> 0.05659191978 | P40: =(((((1+$J$64)^(P$20))-(($J$65*(SQRT(P$20))*$D$13))))^(1/P$20))-1 -> 0.05631658779 | Q40: =(((((1+$J$64)^(Q$20))-(($J$65*(SQRT(Q$20))*$D$13))))^(1/Q$20))-1 -> 0.05601629086 | R40: =(((((1+$J$64)^(R$20))-(($J$65*(SQRT(R$20))*$D$13))))^(1/R$20))-1 -> 0.05568837573 | S40: =(((((1+$J$64)^(S$20))-(($J$65*(SQRT(S$20))*$D$13))))^(1/S$20))-1 -> 0.05532984407 | T40: =(((((1+$J$64)^(T$20))-(($J$65*(SQRT(T$20))*$D$13))))^(1/T$20))-1 -> 0.05493729562 | U40: =(((((1+$J$64)^(U$20))-(($J$65*(SQRT(U$20))*$D$13))))^(1/U$20))-1 -> 0.05450685948 | V40: =(((((1+$J$64)^(V$20))-(($J$65*(SQRT(V$20))*$D$13))))^(1/V$20))-1 -> 0.05403411008 | W40: =(((((1+$J$64)^(W$20))-(($J$65*(SQRT(W$20))*$D$13))))^(1/W$20))-1 -> 0.05351396369 | X40: =(((((1+$J$64)^(X$20))-(($J$65*(SQRT(X$20))*$D$13))))^(1/X$20))-1 -> 0.05294054948 | Y40: =(((((1+$J$64)^(Y$20))-(($J$65*(SQRT(Y$20))*$D$13))))^(1/Y$20))-1 -> 0.05230704722 | Z40: =(((((1+$J$64)^(Z$20))-(($J$65*(SQRT(Z$20))*$D$13))))^(1/Z$20))-1 -> 0.05160548024 | AA40: =(((((1+$J$64)^(AA$20))-(($J$65*(SQRT(AA$20))*$D$13))))^(1/AA$20))-1 -> 0.05082644779 | AB40: =(((((1+$J$64)^(AB$20))-(($J$65*(SQRT(AB$20))*$D$13))))^(1/AB$20))-1 -> 0.0499587736 | AC40: =(((((1+$J$64)^(AC$20))-(($J$65*(SQRT(AC$20))*$D$13))))^(1/AC$20))-1 -> 0.04898903629 | AD40: =(((((1+$J$64)^(AD$20))-(($J$65*(SQRT(AD$20))*$D$13))))^(1/AD$20))-1 -> 0.04790092969 | AE40: =(((((1+$J$64)^(AE$20))-(($J$65*(SQRT(AE$20))*$D$13))))^(1/AE$20))-1 -> 0.04667437216 | AF40: =(((((1+$J$64)^(AF$20))-(($J$65*(SQRT(AF$20))*$D$13))))^(1/AF$20))-1 -> 0.04528423537 | AG40: =(((((1+$J$64)^(AG$20))-(($J$65*(SQRT(AG$20))*$D$13))))^(1/AG$20))-1 -> 0.04369847752 | AH40: =(((((1+$J$64)^(AH$20))-(($J$65*(SQRT(AH$20))*$D$13))))^(1/AH$20))-1 -> 0.04187531147 | AI40: =(((((1+$J$64)^(AI$20))-(($J$65*(SQRT(AI$20))*$D$13))))^(1/AI$20))-1 -> 0.03975874157 | AJ40: =(((((1+$J$64)^(AJ$20))-(($J$65*(SQRT(AJ$20))*$D$13))))^(1/AJ$20))-1 -> 0.03727120491 | AK40: =(((((1+$J$64)^(AK$20))-(($J$65*(SQRT(AK$20))*$D$13))))^(1/AK$20))-1 -> 0.03430075825 | AL40: =(((((1+$J$64)^(AL$20))-(($J$65*(SQRT(AL$20))*$D$13))))^(1/AL$20))-1 -> 0.03067721151 | AM40: =(((((1+$J$64)^(AM$20))-(($J$65*(SQRT(AM$20))*$D$13))))^(1/AM$20))-1 -> 0.02612367272 | AN40: =(((((1+$J$64)^(AN$20))-(($J$65*(SQRT(AN$20))*$D$13))))^(1/AN$20))-1 -> 0.02014621698 | AO40: =(((((1+$J$64)^(AO$20))-(($J$65*(SQRT(AO$20))*$D$13))))^(1/AO$20))-1 -> 0.01173842293 | AP40: =(((((1+$J$64)^(AP$20))-(($J$65*(SQRT(AP$20))*$D$13))))^(1/AP$20))-1 -> -0.001637303936 | AQ40: =(((((1+$J$64)^(AQ$20))-(($J$65*(SQRT(AQ$20))*$D$13))))^(1/AQ$20))-1 -> -0.029712 | AR40: =(((((1+$J$64)^(AR$20))-(($J$65*(SQRT(AR$20))*$D$13))))^(1/AR$20))-1 -> -0.1153719902 | AS40: =(((((1+$J$64)^(AS$20))-(($J$65*(SQRT(AS$20))*$D$13))))^(1/AS$20))-1 -> -0.1153719902 | AT40: =(((((1+$J$64)^(AT$20))-(($J$65*(SQRT(AT$20))*$D$13))))^(1/AT$20))-1 -> -0.1153719902 | AU40: =(((((1+$J$64)^(AU$20))-(($J$65*(SQRT(AU$20))*$D$13))))^(1/AU$20))-1 -> -0.1153719902 | AV40: =(((((1+$J$64)^(AV$20))-(($J$65*(SQRT(AV$20))*$D$13))))^(1/AV$20))-1 -> -0.1153719902 | AW40: =(((((1+$J$64)^(AW$20))-(($J$65*(SQRT(AW$20))*$D$13))))^(1/AW$20))-1 -> -0.1153719902 | AX40: =(((((1+$J$64)^(AX$20))-(($J$65*(SQRT(AX$20))*$D$13))))^(1/AX$20))-1 -> -0.1153719902 | AY40: =(((((1+$J$64)^(AY$20))-(($J$65*(SQRT(AY$20))*$D$13))))^(1/AY$20))-1 -> -0.1153719902 | AZ40: =(((((1+$J$64)^(AZ$20))-(($J$65*(SQRT(AZ$20))*$D$13))))^(1/AZ$20))-1 -> -0.1153719902 | BA40: =(((((1+$J$64)^(BA$20))-(($J$65*(SQRT(BA$20))*$D$13))))^(1/BA$20))-1 -> -0.1153719902 | BB40: =(((((1+$J$64)^(BB$20))-(($J$65*(SQRT(BB$20))*$D$13))))^(1/BB$20))-1 -> -0.1153719902 | BC40: =(((((1+$J$64)^(BC$20))-(($J$65*(SQRT(BC$20))*$D$13))))^(1/BC$20))-1 -> -0.1153719902 | BD40: =(((((1+$J$64)^(BD$20))-(($J$65*(SQRT(BD$20))*$D$13))))^(1/BD$20))-1 -> -0.1153719902 | BE40: =(((((1+$J$64)^(BE$20))-(($J$65*(SQRT(BE$20))*$D$13))))^(1/BE$20))-1 -> -0.1153719902 | BF40: =(((((1+$J$64)^(BF$20))-(($J$65*(SQRT(BF$20))*$D$13))))^(1/BF$20))-1 -> -0.1153719902 | BG40: =(((((1+$J$64)^(BG$20))-(($J$65*(SQRT(BG$20))*$D$13))))^(1/BG$20))-1 -> -0.1153719902 | BH40: =(((((1+$J$64)^(BH$20))-(($J$65*(SQRT(BH$20))*$D$13))))^(1/BH$20))-1 -> -0.1153719902 | BI40: =(((((1+$J$64)^(BI$20))-(($J$65*(SQRT(BI$20))*$D$13))))^(1/BI$20))-1 -> -0.1153719902 | BJ40: =(((((1+$J$64)^(BJ$20))-(($J$65*(SQRT(BJ$20))*$D$13))))^(1/BJ$20))-1 -> -0.1153719902 | BK40: =(((((1+$J$64)^(BK$20))-(($J$65*(SQRT(BK$20))*$D$13))))^(1/BK$20))-1 -> -0.1153719902 | BL40: =(((((1+$J$64)^(BL$20))-(($J$65*(SQRT(BL$20))*$D$13))))^(1/BL$20))-1 -> -0.1153719902 | BM40: =(((((1+$J$64)^(BM$20))-(($J$65*(SQRT(BM$20))*$D$13))))^(1/BM$20))-1 -> -0.1153719902 | BN40: =(((((1+$J$64)^(BN$20))-(($J$65*(SQRT(BN$20))*$D$13))))^(1/BN$20))-1 -> -0.1153719902 | BO40: =(((((1+$J$64)^(BO$20))-(($J$65*(SQRT(BO$20))*$D$13))))^(1/BO$20))-1 -> -0.1153719902 | BP40: =(((((1+$J$64)^(BP$20))-(($J$65*(SQRT(BP$20))*$D$13))))^(1/BP$20))-1 -> -0.1153719902 | BQ40: =(((((1+$J$64)^(BQ$20))-(($J$65*(SQRT(BQ$20))*$D$13))))^(1/BQ$20))-1 -> -0.1153719902
C41: D | D41: =(((((1+$K$64)^(D$20))-(($K$65*(SQRT(D$20))*$D$13))))^(1/D$20))-1 -> 0.06851241718 | E41: =(((((1+$K$64)^(E$20))-(($K$65*(SQRT(E$20))*$D$13))))^(1/E$20))-1 -> 0.06838551555 | F41: =(((((1+$K$64)^(F$20))-(($K$65*(SQRT(F$20))*$D$13))))^(1/F$20))-1 -> 0.06824707248 | G41: =(((((1+$K$64)^(G$20))-(($K$65*(SQRT(G$20))*$D$13))))^(1/G$20))-1 -> 0.06809594124 | H41: =(((((1+$K$64)^(H$20))-(($K$65*(SQRT(H$20))*$D$13))))^(1/H$20))-1 -> 0.0679308473 | I41: =(((((1+$K$64)^(I$20))-(($K$65*(SQRT(I$20))*$D$13))))^(1/I$20))-1 -> 0.06775037197 | J41: =(((((1+$K$64)^(J$20))-(($K$65*(SQRT(J$20))*$D$13))))^(1/J$20))-1 -> 0.06755293364 | K41: =(((((1+$K$64)^(K$20))-(($K$65*(SQRT(K$20))*$D$13))))^(1/K$20))-1 -> 0.06733676614 | L41: =(((((1+$K$64)^(L$20))-(($K$65*(SQRT(L$20))*$D$13))))^(1/L$20))-1 -> 0.06709989371 | M41: =(((((1+$K$64)^(M$20))-(($K$65*(SQRT(M$20))*$D$13))))^(1/M$20))-1 -> 0.06684010202 | N41: =(((((1+$K$64)^(N$20))-(($K$65*(SQRT(N$20))*$D$13))))^(1/N$20))-1 -> 0.06655490444 | O41: =(((((1+$K$64)^(O$20))-(($K$65*(SQRT(O$20))*$D$13))))^(1/O$20))-1 -> 0.06624150258 | P41: =(((((1+$K$64)^(P$20))-(($K$65*(SQRT(P$20))*$D$13))))^(1/P$20))-1 -> 0.06589674007 | Q41: =(((((1+$K$64)^(Q$20))-(($K$65*(SQRT(Q$20))*$D$13))))^(1/Q$20))-1 -> 0.06551704807 | R41: =(((((1+$K$64)^(R$20))-(($K$65*(SQRT(R$20))*$D$13))))^(1/R$20))-1 -> 0.06509838071 | S41: =(((((1+$K$64)^(S$20))-(($K$65*(SQRT(S$20))*$D$13))))^(1/S$20))-1 -> 0.06463613835 | T41: =(((((1+$K$64)^(T$20))-(($K$65*(SQRT(T$20))*$D$13))))^(1/T$20))-1 -> 0.06412507553 | U41: =(((((1+$K$64)^(U$20))-(($K$65*(SQRT(U$20))*$D$13))))^(1/U$20))-1 -> 0.0635591901 | V41: =(((((1+$K$64)^(V$20))-(($K$65*(SQRT(V$20))*$D$13))))^(1/V$20))-1 -> 0.06293158862 | W41: =(((((1+$K$64)^(W$20))-(($K$65*(SQRT(W$20))*$D$13))))^(1/W$20))-1 -> 0.06223432149 | X41: =(((((1+$K$64)^(X$20))-(($K$65*(SQRT(X$20))*$D$13))))^(1/X$20))-1 -> 0.06145817936 | Y41: =(((((1+$K$64)^(Y$20))-(($K$65*(SQRT(Y$20))*$D$13))))^(1/Y$20))-1 -> 0.06059243902 | Z41: =(((((1+$K$64)^(Z$20))-(($K$65*(SQRT(Z$20))*$D$13))))^(1/Z$20))-1 -> 0.05962454242 | AA41: =(((((1+$K$64)^(AA$20))-(($K$65*(SQRT(AA$20))*$D$13))))^(1/AA$20))-1 -> 0.05853968616 | AB41: =(((((1+$K$64)^(AB$20))-(($K$65*(SQRT(AB$20))*$D$13))))^(1/AB$20))-1 -> 0.05732028814 | AC41: =(((((1+$K$64)^(AC$20))-(($K$65*(SQRT(AC$20))*$D$13))))^(1/AC$20))-1 -> 0.05594528305 | AD41: =(((((1+$K$64)^(AD$20))-(($K$65*(SQRT(AD$20))*$D$13))))^(1/AD$20))-1 -> 0.05438917326 | AE41: =(((((1+$K$64)^(AE$20))-(($K$65*(SQRT(AE$20))*$D$13))))^(1/AE$20))-1 -> 0.05262072142 | AF41: =(((((1+$K$64)^(AF$20))-(($K$65*(SQRT(AF$20))*$D$13))))^(1/AF$20))-1 -> 0.05060110297 | AG41: =(((((1+$K$64)^(AG$20))-(($K$65*(SQRT(AG$20))*$D$13))))^(1/AG$20))-1 -> 0.04828121771 | AH41: =(((((1+$K$64)^(AH$20))-(($K$65*(SQRT(AH$20))*$D$13))))^(1/AH$20))-1 -> 0.04559764265 | AI41: =(((((1+$K$64)^(AI$20))-(($K$65*(SQRT(AI$20))*$D$13))))^(1/AI$20))-1 -> 0.0424662942 | AJ41: =(((((1+$K$64)^(AJ$20))-(($K$65*(SQRT(AJ$20))*$D$13))))^(1/AJ$20))-1 -> 0.0387720309 | AK41: =(((((1+$K$64)^(AK$20))-(($K$65*(SQRT(AK$20))*$D$13))))^(1/AK$20))-1 -> 0.03435061951 | AL41: =(((((1+$K$64)^(AL$20))-(($K$65*(SQRT(AL$20))*$D$13))))^(1/AL$20))-1 -> 0.02895524377 | AM41: =(((((1+$K$64)^(AM$20))-(($K$65*(SQRT(AM$20))*$D$13))))^(1/AM$20))-1 -> 0.0221886842 | AN41: =(((((1+$K$64)^(AN$20))-(($K$65*(SQRT(AN$20))*$D$13))))^(1/AN$20))-1 -> 0.01334930956 | AO41: =(((((1+$K$64)^(AO$20))-(($K$65*(SQRT(AO$20))*$D$13))))^(1/AO$20))-1 -> 0.001020081913 | AP41: =(((((1+$K$64)^(AP$20))-(($K$65*(SQRT(AP$20))*$D$13))))^(1/AP$20))-1 -> -0.01834100124 | AQ41: =(((((1+$K$64)^(AQ$20))-(($K$65*(SQRT(AQ$20))*$D$13))))^(1/AQ$20))-1 -> -0.05816 | AR41: =(((((1+$K$64)^(AR$20))-(($K$65*(SQRT(AR$20))*$D$13))))^(1/AR$20))-1 -> -0.1752307582 | AS41: =(((((1+$K$64)^(AS$20))-(($K$65*(SQRT(AS$20))*$D$13))))^(1/AS$20))-1 -> -0.1752307582 | AT41: =(((((1+$K$64)^(AT$20))-(($K$65*(SQRT(AT$20))*$D$13))))^(1/AT$20))-1 -> -0.1752307582 | AU41: =(((((1+$K$64)^(AU$20))-(($K$65*(SQRT(AU$20))*$D$13))))^(1/AU$20))-1 -> -0.1752307582 | AV41: =(((((1+$K$64)^(AV$20))-(($K$65*(SQRT(AV$20))*$D$13))))^(1/AV$20))-1 -> -0.1752307582 | AW41: =(((((1+$K$64)^(AW$20))-(($K$65*(SQRT(AW$20))*$D$13))))^(1/AW$20))-1 -> -0.1752307582 | AX41: =(((((1+$K$64)^(AX$20))-(($K$65*(SQRT(AX$20))*$D$13))))^(1/AX$20))-1 -> -0.1752307582 | AY41: =(((((1+$K$64)^(AY$20))-(($K$65*(SQRT(AY$20))*$D$13))))^(1/AY$20))-1 -> -0.1752307582 | AZ41: =(((((1+$K$64)^(AZ$20))-(($K$65*(SQRT(AZ$20))*$D$13))))^(1/AZ$20))-1 -> -0.1752307582 | BA41: =(((((1+$K$64)^(BA$20))-(($K$65*(SQRT(BA$20))*$D$13))))^(1/BA$20))-1 -> -0.1752307582 | BB41: =(((((1+$K$64)^(BB$20))-(($K$65*(SQRT(BB$20))*$D$13))))^(1/BB$20))-1 -> -0.1752307582 | BC41: =(((((1+$K$64)^(BC$20))-(($K$65*(SQRT(BC$20))*$D$13))))^(1/BC$20))-1 -> -0.1752307582 | BD41: =(((((1+$K$64)^(BD$20))-(($K$65*(SQRT(BD$20))*$D$13))))^(1/BD$20))-1 -> -0.1752307582 | BE41: =(((((1+$K$64)^(BE$20))-(($K$65*(SQRT(BE$20))*$D$13))))^(1/BE$20))-1 -> -0.1752307582 | BF41: =(((((1+$K$64)^(BF$20))-(($K$65*(SQRT(BF$20))*$D$13))))^(1/BF$20))-1 -> -0.1752307582 | BG41: =(((((1+$K$64)^(BG$20))-(($K$65*(SQRT(BG$20))*$D$13))))^(1/BG$20))-1 -> -0.1752307582 | BH41: =(((((1+$K$64)^(BH$20))-(($K$65*(SQRT(BH$20))*$D$13))))^(1/BH$20))-1 -> -0.1752307582 | BI41: =(((((1+$K$64)^(BI$20))-(($K$65*(SQRT(BI$20))*$D$13))))^(1/BI$20))-1 -> -0.1752307582 | BJ41: =(((((1+$K$64)^(BJ$20))-(($K$65*(SQRT(BJ$20))*$D$13))))^(1/BJ$20))-1 -> -0.1752307582 | BK41: =(((((1+$K$64)^(BK$20))-(($K$65*(SQRT(BK$20))*$D$13))))^(1/BK$20))-1 -> -0.1752307582 | BL41: =(((((1+$K$64)^(BL$20))-(($K$65*(SQRT(BL$20))*$D$13))))^(1/BL$20))-1 -> -0.1752307582 | BM41: =(((((1+$K$64)^(BM$20))-(($K$65*(SQRT(BM$20))*$D$13))))^(1/BM$20))-1 -> -0.1752307582 | BN41: =(((((1+$K$64)^(BN$20))-(($K$65*(SQRT(BN$20))*$D$13))))^(1/BN$20))-1 -> -0.1752307582 | BO41: =(((((1+$K$64)^(BO$20))-(($K$65*(SQRT(BO$20))*$D$13))))^(1/BO$20))-1 -> -0.1752307582 | BP41: =(((((1+$K$64)^(BP$20))-(($K$65*(SQRT(BP$20))*$D$13))))^(1/BP$20))-1 -> -0.1752307582 | BQ41: =(((((1+$K$64)^(BQ$20))-(($K$65*(SQRT(BQ$20))*$D$13))))^(1/BQ$20))-1 -> -0.1752307582
C42: E | D42: =(((((1+$L$64)^(D$20))-(($L$65*(SQRT(D$20))*$D$13))))^(1/D$20))-1 -> 0.07865840558 | E42: =(((((1+$L$64)^(E$20))-(($L$65*(SQRT(E$20))*$D$13))))^(1/E$20))-1 -> 0.07853023806 | F42: =(((((1+$L$64)^(F$20))-(($L$65*(SQRT(F$20))*$D$13))))^(1/F$20))-1 -> 0.07838913333 | G42: =(((((1+$L$64)^(G$20))-(($L$65*(SQRT(G$20))*$D$13))))^(1/G$20))-1 -> 0.07823368167 | H42: =(((((1+$L$64)^(H$20))-(($L$65*(SQRT(H$20))*$D$13))))^(1/H$20))-1 -> 0.07806230349 | I42: =(((((1+$L$64)^(I$20))-(($L$65*(SQRT(I$20))*$D$13))))^(1/I$20))-1 -> 0.07787322624 | J42: =(((((1+$L$64)^(J$20))-(($L$65*(SQRT(J$20))*$D$13))))^(1/J$20))-1 -> 0.07766445767 | K42: =(((((1+$L$64)^(K$20))-(($L$65*(SQRT(K$20))*$D$13))))^(1/K$20))-1 -> 0.07743375489 | L42: =(((((1+$L$64)^(L$20))-(($L$65*(SQRT(L$20))*$D$13))))^(1/L$20))-1 -> 0.07717858837 | M42: =(((((1+$L$64)^(M$20))-(($L$65*(SQRT(M$20))*$D$13))))^(1/M$20))-1 -> 0.07689610002 | N42: =(((((1+$L$64)^(N$20))-(($L$65*(SQRT(N$20))*$D$13))))^(1/N$20))-1 -> 0.07658305411 | O42: =(((((1+$L$64)^(O$20))-(($L$65*(SQRT(O$20))*$D$13))))^(1/O$20))-1 -> 0.07623577975 | P42: =(((((1+$L$64)^(P$20))-(($L$65*(SQRT(P$20))*$D$13))))^(1/P$20))-1 -> 0.07585010306 | Q42: =(((((1+$L$64)^(Q$20))-(($L$65*(SQRT(Q$20))*$D$13))))^(1/Q$20))-1 -> 0.07542126703 | R42: =(((((1+$L$64)^(R$20))-(($L$65*(SQRT(R$20))*$D$13))))^(1/R$20))-1 -> 0.07494383636 | S42: =(((((1+$L$64)^(S$20))-(($L$65*(SQRT(S$20))*$D$13))))^(1/S$20))-1 -> 0.07441158394 | T42: =(((((1+$L$64)^(T$20))-(($L$65*(SQRT(T$20))*$D$13))))^(1/T$20))-1 -> 0.07381735473 | U42: =(((((1+$L$64)^(U$20))-(($L$65*(SQRT(U$20))*$D$13))))^(1/U$20))-1 -> 0.07315290175 | V42: =(((((1+$L$64)^(V$20))-(($L$65*(SQRT(V$20))*$D$13))))^(1/V$20))-1 -> 0.07240868712 | W42: =(((((1+$L$64)^(W$20))-(($L$65*(SQRT(W$20))*$D$13))))^(1/W$20))-1 -> 0.07157363916 | X42: =(((((1+$L$64)^(X$20))-(($L$65*(SQRT(X$20))*$D$13))))^(1/X$20))-1 -> 0.07063485351 | Y42: =(((((1+$L$64)^(Y$20))-(($L$65*(SQRT(Y$20))*$D$13))))^(1/Y$20))-1 -> 0.06957722224 | Z42: =(((((1+$L$64)^(Z$20))-(($L$65*(SQRT(Z$20))*$D$13))))^(1/Z$20))-1 -> 0.06838296894 | AA42: =(((((1+$L$64)^(AA$20))-(($L$65*(SQRT(AA$20))*$D$13))))^(1/AA$20))-1 -> 0.0670310593 | AB42: =(((((1+$L$64)^(AB$20))-(($L$65*(SQRT(AB$20))*$D$13))))^(1/AB$20))-1 -> 0.0654964439 | AC42: =(((((1+$L$64)^(AC$20))-(($L$65*(SQRT(AC$20))*$D$13))))^(1/AC$20))-1 -> 0.06374907008 | AD42: =(((((1+$L$64)^(AD$20))-(($L$65*(SQRT(AD$20))*$D$13))))^(1/AD$20))-1 -> 0.06175256904 | AE42: =(((((1+$L$64)^(AE$20))-(($L$65*(SQRT(AE$20))*$D$13))))^(1/AE$20))-1 -> 0.05946247322 | AF42: =(((((1+$L$64)^(AF$20))-(($L$65*(SQRT(AF$20))*$D$13))))^(1/AF$20))-1 -> 0.05682373437 | AG42: =(((((1+$L$64)^(AG$20))-(($L$65*(SQRT(AG$20))*$D$13))))^(1/AG$20))-1 -> 0.0537671629 | AH42: =(((((1+$L$64)^(AH$20))-(($L$65*(SQRT(AH$20))*$D$13))))^(1/AH$20))-1 -> 0.05020413746 | AI42: =(((((1+$L$64)^(AI$20))-(($L$65*(SQRT(AI$20))*$D$13))))^(1/AI$20))-1 -> 0.04601841203 | AJ42: =(((((1+$L$64)^(AJ$20))-(($L$65*(SQRT(AJ$20))*$D$13))))^(1/AJ$20))-1 -> 0.04105279255 | AK42: =(((((1+$L$64)^(AK$20))-(($L$65*(SQRT(AK$20))*$D$13))))^(1/AK$20))-1 -> 0.03508617137 | AL42: =(((((1+$L$64)^(AL$20))-(($L$65*(SQRT(AL$20))*$D$13))))^(1/AL$20))-1 -> 0.02779104523 | AM42: =(((((1+$L$64)^(AM$20))-(($L$65*(SQRT(AM$20))*$D$13))))^(1/AM$20))-1 -> 0.01864768965 | AN42: =(((((1+$L$64)^(AN$20))-(($L$65*(SQRT(AN$20))*$D$13))))^(1/AN$20))-1 -> 0.006749596412 | AO42: =(((((1+$L$64)^(AO$20))-(($L$65*(SQRT(AO$20))*$D$13))))^(1/AO$20))-1 -> -0.009714574339 | AP42: =(((((1+$L$64)^(AP$20))-(($L$65*(SQRT(AP$20))*$D$13))))^(1/AP$20))-1 -> -0.03523023119 | AQ42: =(((((1+$L$64)^(AQ$20))-(($L$65*(SQRT(AQ$20))*$D$13))))^(1/AQ$20))-1 -> -0.086608 | AR42: =(((((1+$L$64)^(AR$20))-(($L$65*(SQRT(AR$20))*$D$13))))^(1/AR$20))-1 -> -0.2320537533 | AS42: =(((((1+$L$64)^(AS$20))-(($L$65*(SQRT(AS$20))*$D$13))))^(1/AS$20))-1 -> -0.2320537533 | AT42: =(((((1+$L$64)^(AT$20))-(($L$65*(SQRT(AT$20))*$D$13))))^(1/AT$20))-1 -> -0.2320537533 | AU42: =(((((1+$L$64)^(AU$20))-(($L$65*(SQRT(AU$20))*$D$13))))^(1/AU$20))-1 -> -0.2320537533 | AV42: =(((((1+$L$64)^(AV$20))-(($L$65*(SQRT(AV$20))*$D$13))))^(1/AV$20))-1 -> -0.2320537533 | AW42: =(((((1+$L$64)^(AW$20))-(($L$65*(SQRT(AW$20))*$D$13))))^(1/AW$20))-1 -> -0.2320537533 | AX42: =(((((1+$L$64)^(AX$20))-(($L$65*(SQRT(AX$20))*$D$13))))^(1/AX$20))-1 -> -0.2320537533 | AY42: =(((((1+$L$64)^(AY$20))-(($L$65*(SQRT(AY$20))*$D$13))))^(1/AY$20))-1 -> -0.2320537533 | AZ42: =(((((1+$L$64)^(AZ$20))-(($L$65*(SQRT(AZ$20))*$D$13))))^(1/AZ$20))-1 -> -0.2320537533 | BA42: =(((((1+$L$64)^(BA$20))-(($L$65*(SQRT(BA$20))*$D$13))))^(1/BA$20))-1 -> -0.2320537533 | BB42: =(((((1+$L$64)^(BB$20))-(($L$65*(SQRT(BB$20))*$D$13))))^(1/BB$20))-1 -> -0.2320537533 | BC42: =(((((1+$L$64)^(BC$20))-(($L$65*(SQRT(BC$20))*$D$13))))^(1/BC$20))-1 -> -0.2320537533 | BD42: =(((((1+$L$64)^(BD$20))-(($L$65*(SQRT(BD$20))*$D$13))))^(1/BD$20))-1 -> -0.2320537533 | BE42: =(((((1+$L$64)^(BE$20))-(($L$65*(SQRT(BE$20))*$D$13))))^(1/BE$20))-1 -> -0.2320537533 | BF42: =(((((1+$L$64)^(BF$20))-(($L$65*(SQRT(BF$20))*$D$13))))^(1/BF$20))-1 -> -0.2320537533 | BG42: =(((((1+$L$64)^(BG$20))-(($L$65*(SQRT(BG$20))*$D$13))))^(1/BG$20))-1 -> -0.2320537533 | BH42: =(((((1+$L$64)^(BH$20))-(($L$65*(SQRT(BH$20))*$D$13))))^(1/BH$20))-1 -> -0.2320537533 | BI42: =(((((1+$L$64)^(BI$20))-(($L$65*(SQRT(BI$20))*$D$13))))^(1/BI$20))-1 -> -0.2320537533 | BJ42: =(((((1+$L$64)^(BJ$20))-(($L$65*(SQRT(BJ$20))*$D$13))))^(1/BJ$20))-1 -> -0.2320537533 | BK42: =(((((1+$L$64)^(BK$20))-(($L$65*(SQRT(BK$20))*$D$13))))^(1/BK$20))-1 -> -0.2320537533 | BL42: =(((((1+$L$64)^(BL$20))-(($L$65*(SQRT(BL$20))*$D$13))))^(1/BL$20))-1 -> -0.2320537533 | BM42: =(((((1+$L$64)^(BM$20))-(($L$65*(SQRT(BM$20))*$D$13))))^(1/BM$20))-1 -> -0.2320537533 | BN42: =(((((1+$L$64)^(BN$20))-(($L$65*(SQRT(BN$20))*$D$13))))^(1/BN$20))-1 -> -0.2320537533 | BO42: =(((((1+$L$64)^(BO$20))-(($L$65*(SQRT(BO$20))*$D$13))))^(1/BO$20))-1 -> -0.2320537533 | BP42: =(((((1+$L$64)^(BP$20))-(($L$65*(SQRT(BP$20))*$D$13))))^(1/BP$20))-1 -> -0.2320537533 | BQ42: =(((((1+$L$64)^(BQ$20))-(($L$65*(SQRT(BQ$20))*$D$13))))^(1/BQ$20))-1 -> -0.2320537533
C43: F | D43: =(((((1+$M$64)^(D$20))-(($M$65*(SQRT(D$20))*$D$13))))^(1/D$20))-1 -> 0.08885157054 | E43: =(((((1+$M$64)^(E$20))-(($M$65*(SQRT(E$20))*$D$13))))^(1/E$20))-1 -> 0.08873026309 | F43: =(((((1+$M$64)^(F$20))-(($M$65*(SQRT(F$20))*$D$13))))^(1/F$20))-1 -> 0.08859551846 | G43: =(((((1+$M$64)^(G$20))-(($M$65*(SQRT(G$20))*$D$13))))^(1/G$20))-1 -> 0.08844574561 | H43: =(((((1+$M$64)^(H$20))-(($M$65*(SQRT(H$20))*$D$13))))^(1/H$20))-1 -> 0.08827914756 | I43: =(((((1+$M$64)^(I$20))-(($M$65*(SQRT(I$20))*$D$13))))^(1/I$20))-1 -> 0.08809369161 | J43: =(((((1+$M$64)^(J$20))-(($M$65*(SQRT(J$20))*$D$13))))^(1/J$20))-1 -> 0.08788707471 | K43: =(((((1+$M$64)^(K$20))-(($M$65*(SQRT(K$20))*$D$13))))^(1/K$20))-1 -> 0.08765668304 | L43: =(((((1+$M$64)^(L$20))-(($M$65*(SQRT(L$20))*$D$13))))^(1/L$20))-1 -> 0.08739954474 | M43: =(((((1+$M$64)^(M$20))-(($M$65*(SQRT(M$20))*$D$13))))^(1/M$20))-1 -> 0.08711227435 | N43: =(((((1+$M$64)^(N$20))-(($M$65*(SQRT(N$20))*$D$13))))^(1/N$20))-1 -> 0.0867910075 | O43: =(((((1+$M$64)^(O$20))-(($M$65*(SQRT(O$20))*$D$13))))^(1/O$20))-1 -> 0.08643132373 | P43: =(((((1+$M$64)^(P$20))-(($M$65*(SQRT(P$20))*$D$13))))^(1/P$20))-1 -> 0.08602815493 | Q43: =(((((1+$M$64)^(Q$20))-(($M$65*(SQRT(Q$20))*$D$13))))^(1/Q$20))-1 -> 0.08557567655 | R43: =(((((1+$M$64)^(R$20))-(($M$65*(SQRT(R$20))*$D$13))))^(1/R$20))-1 -> 0.08506717754 | S43: =(((((1+$M$64)^(S$20))-(($M$65*(SQRT(S$20))*$D$13))))^(1/S$20))-1 -> 0.08449490445 | T43: =(((((1+$M$64)^(T$20))-(($M$65*(SQRT(T$20))*$D$13))))^(1/T$20))-1 -> 0.08384987352 | U43: =(((((1+$M$64)^(U$20))-(($M$65*(SQRT(U$20))*$D$13))))^(1/U$20))-1 -> 0.08312164335 | V43: =(((((1+$M$64)^(V$20))-(($M$65*(SQRT(V$20))*$D$13))))^(1/V$20))-1 -> 0.08229803811 | W43: =(((((1+$M$64)^(W$20))-(($M$65*(SQRT(W$20))*$D$13))))^(1/W$20))-1 -> 0.08136480887 | X43: =(((((1+$M$64)^(X$20))-(($M$65*(SQRT(X$20))*$D$13))))^(1/X$20))-1 -> 0.08030521651 | Y43: =(((((1+$M$64)^(Y$20))-(($M$65*(SQRT(Y$20))*$D$13))))^(1/Y$20))-1 -> 0.07909951426 | Z43: =(((((1+$M$64)^(Z$20))-(($M$65*(SQRT(Z$20))*$D$13))))^(1/Z$20))-1 -> 0.07772430066 | AA43: =(((((1+$M$64)^(AA$20))-(($M$65*(SQRT(AA$20))*$D$13))))^(1/AA$20))-1 -> 0.07615170296 | AB43: =(((((1+$M$64)^(AB$20))-(($M$65*(SQRT(AB$20))*$D$13))))^(1/AB$20))-1 -> 0.07434833515 | AC43: =(((((1+$M$64)^(AC$20))-(($M$65*(SQRT(AC$20))*$D$13))))^(1/AC$20))-1 -> 0.07227395137 | AD43: =(((((1+$M$64)^(AD$20))-(($M$65*(SQRT(AD$20))*$D$13))))^(1/AD$20))-1 -> 0.06987967851 | AE43: =(((((1+$M$64)^(AE$20))-(($M$65*(SQRT(AE$20))*$D$13))))^(1/AE$20))-1 -> 0.06710565256 | AF43: =(((((1+$M$64)^(AF$20))-(($M$65*(SQRT(AF$20))*$D$13))))^(1/AF$20))-1 -> 0.06387778391 | AG43: =(((((1+$M$64)^(AG$20))-(($M$65*(SQRT(AG$20))*$D$13))))^(1/AG$20))-1 -> 0.06010320374 | AH43: =(((((1+$M$64)^(AH$20))-(($M$65*(SQRT(AH$20))*$D$13))))^(1/AH$20))-1 -> 0.05566362676 | AI43: =(((((1+$M$64)^(AI$20))-(($M$65*(SQRT(AI$20))*$D$13))))^(1/AI$20))-1 -> 0.05040525656 | AJ43: =(((((1+$M$64)^(AJ$20))-(($M$65*(SQRT(AJ$20))*$D$13))))^(1/AJ$20))-1 -> 0.0441226198 | AK43: =(((((1+$M$64)^(AK$20))-(($M$65*(SQRT(AK$20))*$D$13))))^(1/AK$20))-1 -> 0.03653101634 | AL43: =(((((1+$M$64)^(AL$20))-(($M$65*(SQRT(AL$20))*$D$13))))^(1/AL$20))-1 -> 0.02721590949 | AM43: =(((((1+$M$64)^(AM$20))-(($M$65*(SQRT(AM$20))*$D$13))))^(1/AM$20))-1 -> 0.01553098602 | AN43: =(((((1+$M$64)^(AN$20))-(($M$65*(SQRT(AN$20))*$D$13))))^(1/AN$20))-1 -> 0.0003672001965 | AO43: =(((((1+$M$64)^(AO$20))-(($M$65*(SQRT(AO$20))*$D$13))))^(1/AO$20))-1 -> -0.0204619734 | AP43: =(((((1+$M$64)^(AP$20))-(($M$65*(SQRT(AP$20))*$D$13))))^(1/AP$20))-1 -> -0.05231491319 | AQ43: =(((((1+$M$64)^(AQ$20))-(($M$65*(SQRT(AQ$20))*$D$13))))^(1/AQ$20))-1 -> -0.115056 | AR43: =(((((1+$M$64)^(AR$20))-(($M$65*(SQRT(AR$20))*$D$13))))^(1/AR$20))-1 -> -0.285939687 | AS43: =(((((1+$M$64)^(AS$20))-(($M$65*(SQRT(AS$20))*$D$13))))^(1/AS$20))-1 -> -0.285939687 | AT43: =(((((1+$M$64)^(AT$20))-(($M$65*(SQRT(AT$20))*$D$13))))^(1/AT$20))-1 -> -0.285939687 | AU43: =(((((1+$M$64)^(AU$20))-(($M$65*(SQRT(AU$20))*$D$13))))^(1/AU$20))-1 -> -0.285939687 | AV43: =(((((1+$M$64)^(AV$20))-(($M$65*(SQRT(AV$20))*$D$13))))^(1/AV$20))-1 -> -0.285939687 | AW43: =(((((1+$M$64)^(AW$20))-(($M$65*(SQRT(AW$20))*$D$13))))^(1/AW$20))-1 -> -0.285939687 | AX43: =(((((1+$M$64)^(AX$20))-(($M$65*(SQRT(AX$20))*$D$13))))^(1/AX$20))-1 -> -0.285939687 | AY43: =(((((1+$M$64)^(AY$20))-(($M$65*(SQRT(AY$20))*$D$13))))^(1/AY$20))-1 -> -0.285939687 | AZ43: =(((((1+$M$64)^(AZ$20))-(($M$65*(SQRT(AZ$20))*$D$13))))^(1/AZ$20))-1 -> -0.285939687 | BA43: =(((((1+$M$64)^(BA$20))-(($M$65*(SQRT(BA$20))*$D$13))))^(1/BA$20))-1 -> -0.285939687 | BB43: =(((((1+$M$64)^(BB$20))-(($M$65*(SQRT(BB$20))*$D$13))))^(1/BB$20))-1 -> -0.285939687 | BC43: =(((((1+$M$64)^(BC$20))-(($M$65*(SQRT(BC$20))*$D$13))))^(1/BC$20))-1 -> -0.285939687 | BD43: =(((((1+$M$64)^(BD$20))-(($M$65*(SQRT(BD$20))*$D$13))))^(1/BD$20))-1 -> -0.285939687 | BE43: =(((((1+$M$64)^(BE$20))-(($M$65*(SQRT(BE$20))*$D$13))))^(1/BE$20))-1 -> -0.285939687 | BF43: =(((((1+$M$64)^(BF$20))-(($M$65*(SQRT(BF$20))*$D$13))))^(1/BF$20))-1 -> -0.285939687 | BG43: =(((((1+$M$64)^(BG$20))-(($M$65*(SQRT(BG$20))*$D$13))))^(1/BG$20))-1 -> -0.285939687 | BH43: =(((((1+$M$64)^(BH$20))-(($M$65*(SQRT(BH$20))*$D$13))))^(1/BH$20))-1 -> -0.285939687 | BI43: =(((((1+$M$64)^(BI$20))-(($M$65*(SQRT(BI$20))*$D$13))))^(1/BI$20))-1 -> -0.285939687 | BJ43: =(((((1+$M$64)^(BJ$20))-(($M$65*(SQRT(BJ$20))*$D$13))))^(1/BJ$20))-1 -> -0.285939687 | BK43: =(((((1+$M$64)^(BK$20))-(($M$65*(SQRT(BK$20))*$D$13))))^(1/BK$20))-1 -> -0.285939687 | BL43: =(((((1+$M$64)^(BL$20))-(($M$65*(SQRT(BL$20))*$D$13))))^(1/BL$20))-1 -> -0.285939687 | BM43: =(((((1+$M$64)^(BM$20))-(($M$65*(SQRT(BM$20))*$D$13))))^(1/BM$20))-1 -> -0.285939687 | BN43: =(((((1+$M$64)^(BN$20))-(($M$65*(SQRT(BN$20))*$D$13))))^(1/BN$20))-1 -> -0.285939687 | BO43: =(((((1+$M$64)^(BO$20))-(($M$65*(SQRT(BO$20))*$D$13))))^(1/BO$20))-1 -> -0.285939687 | BP43: =(((((1+$M$64)^(BP$20))-(($M$65*(SQRT(BP$20))*$D$13))))^(1/BP$20))-1 -> -0.285939687 | BQ43: =(((((1+$M$64)^(BQ$20))-(($M$65*(SQRT(BQ$20))*$D$13))))^(1/BQ$20))-1 -> -0.285939687
C44: G | D44: =(D59^(1/D20))-1 -> 0.09874105181 | E44: =(E59^(1/E20))-1 -> 0.09859479051 | F44: =(F59^(1/F20))-1 -> 0.09843076463 | G44: =(G59^(1/G20))-1 -> 0.09824667604 | H44: =(H59^(1/H20))-1 -> 0.09803990292 | I44: 0.0978074489 | J44: 0.09754588347 | K44: 0.09725127145 | L44: 0.09691908961 | M44: 0.09654412767 | N44: 0.09612037026 | O44: 0.09564085591 | P44: 0.09509750784 | Q44: 0.09448093025 | R44: 0.09378016211 | S44: =(S59^(1/S20))-1 -> 0.09298237853 | T44: 0.09207252702 | U44: 0.09103288261 | V44: 0.08984250172 | W44: 0.08847654861 | X44: 0.08690546127 | Y44: 0.08509391409 | Z44: 0.08299952185 | AA44: 0.08057121335 | AB44: 0.0777471807 | AC44: 0.07445228019 | AD44: 0.07059471842 | AE44: 0.06606179552 | AF44: 0.06071438058 | AG44: 0.05437963031 | AH44: 0.04684115545 | AI44: 0.03782521477 | AJ44: 0.02698013336 | AK44: 0.01384287336 | AL44: -0.002221554034 | AM44: -0.02214451616 | AN44: -0.04744616717 | AO44: -0.08103972166 | AP44: -0.1300080606 | AQ44: -0.2204 | AR44: -0.4429663613 | AS44: -0.4429663613 | AT44: -0.4429663613 | AU44: -0.4429663613 | AV44: -0.4429663613 | AW44: -0.4429663613 | AX44: -0.4429663613 | AY44: -0.4429663613 | AZ44: -0.4429663613 | BA44: -0.4429663613 | BB44: -0.4429663613 | BC44: -0.4429663613 | BD44: -0.4429663613 | BE44: -0.4429663613 | BF44: -0.4429663613 | BG44: -0.4429663613 | BH44: -0.4429663613 | BI44: -0.4429663613 | BJ44: -0.4429663613 | BK44: -0.4429663613 | BL44: -0.4429663613 | BM44: -0.4429663613 | BN44: -0.4429663613 | BO44: -0.4429663613 | BP44: -0.4429663613 | BQ44: -0.4429663613
C45: Lending Rate (3%spread) | D45: =$C$16+$D$11 -> 0.07 | E45: =D45 -> 0.07 | F45: =E45 -> 0.07 | G45: 0.07 | H45: 0.07 | I45: 0.07 | J45: 0.07 | K45: 0.07 | L45: 0.07 | M45: 0.07 | N45: 0.07 | O45: 0.07 | P45: 0.07 | Q45: 0.07 | R45: 0.07 | S45: 0.07 | T45: 0.07 | U45: 0.07 | V45: 0.07 | W45: 0.07 | X45: 0.07 | Y45: 0.07 | Z45: 0.07 | AA45: 0.07 | AB45: 0.07 | AC45: 0.07 | AD45: 0.07 | AE45: 0.07 | AF45: 0.07 | AG45: 0.07 | AH45: 0.07 | AI45: 0.07 | AJ45: 0.07 | AK45: 0.07 | AL45: 0.07 | AM45: 0.07 | AN45: 0.07 | AO45: 0.07 | AP45: 0.07 | AQ45: 0.07 | AR45: 0.07 | AS45: 0.07 | AT45: 0.07 | AU45: 0.07 | AV45: 0.07 | AW45: 0.07 | AX45: 0.07 | AY45: 0.07 | AZ45: 0.07 | BA45: 0.07 | BB45: 0.07 | BC45: 0.07 | BD45: 0.07 | BE45: 0.07 | BF45: 0.07 | BG45: 0.07 | BH45: 0.07 | BI45: 0.07 | BJ45: 0.07 | BK45: 0.07 | BL45: 0.07 | BM45: 0.07 | BN45: 0.07 | BO45: 0.07 | BP45: 0.07 | BQ45: 0.07
C46: Portfolio Leverage? | D46: =IF(D21>D45,"Yes","No") -> Yes | E46: Yes | F46: Yes | G46: Yes | H46: Yes | I46: Yes | J46: Yes | K46: Yes | L46: Yes | M46: Yes | N46: Yes | O46: Yes | P46: Yes | Q46: Yes | R46: Yes | S46: Yes | T46: Yes | U46: Yes | V46: Yes | W46: Yes | X46: Yes | Y46: Yes | Z46: Yes | AA46: Yes | AB46: Yes | AC46: Yes | AD46: Yes | AE46: No | AF46: No | AG46: No | AH46: No | AI46: No | AJ46: =IF(AJ21>AJ45,"Yes","No") -> No | AK46: No | AL46: No | AM46: No | AN46: No | AO46: No | AP46: No | AQ46: No | AR46: No | AS46: No | AT46: No | AU46: No | AV46: No | AW46: No | AX46: No | AY46: No | AZ46: No | BA46: No | BB46: No | BC46: No | BD46: No | BE46: No | BF46: No | BG46: No | BH46: No | BI46: No | BJ46: No | BK46: No | BL46: No | BM46: No | BN46: No | BO46: No | BP46: =IF(BP21>BP45,"Yes","No") -> No | BQ46: =IF(BQ21>BQ45,"Yes","No") -> No
C47: Portfolio Leverage - Level (we assume a 5 year term loan) | D47: =AVERAGE(D50:D54) -> 0.75 | E47: =AVERAGE(E50:E54) -> 0.75 | F47: 0.75 | G47: 0.75 | H47: 0.75 | I47: 0.75 | J47: 0.75 | K47: 0.75 | L47: 0.75 | M47: 0.75 | N47: 0.75 | O47: 0.75 | P47: 0.75 | Q47: 0.75 | R47: 0.75 | S47: 0.75 | T47: =AVERAGE(T50:T54) -> 0.75 | U47: 0.75 | V47: 0.75 | W47: 0.75 | X47: 0.75 | Y47: 0.75 | Z47: 0.75 | AA47: 0.6 | AB47: 0.45 | AC47: 0.3 | AD47: 0.15 | AE47: 0 | AF47: 0 | AG47: 0 | AH47: 0 | AI47: 0 | AJ47: 0 | AK47: 0 | AL47: 0 | AM47: 0 | AN47: 0 | AO47: 0 | AP47: 0 | AQ47: 0 | AR47: 0 | AS47: 0 | AT47: 0 | AU47: 0 | AV47: 0 | AW47: 0 | AX47: 0 | AY47: 0 | AZ47: 0 | BA47: 0 | BB47: 0 | BC47: 0 | BD47: 0 | BE47: 0 | BF47: 0 | BG47: 0 | BH47: 0 | BI47: 0 | BJ47: 0 | BK47: 0 | BL47: 0 | BM47: 0 | BN47: 0 | BO47: 0 | BP47: 0 | BQ47: 0
C48: Portfolio Leverage - Defer 10 yr | D48: =E48 -> 0.75 | E48: 0.75 | F48: 0.75 | G48: 0.75 | H48: 0.75 | I48: 0.75 | J48: 0.75 | K48: 0.75 | L48: 0.75 | M48: =N48 -> 0.75 | N48: =D47 -> 0.75 | O48: =E47 -> 0.75 | P48: 0.75 | Q48: 0.75 | R48: 0.75 | S48: 0.75 | T48: 0.75 | U48: 0.75 | V48: 0.75 | W48: 0.75 | X48: 0.75 | Y48: 0.75 | Z48: 0.75 | AA48: 0.75 | AB48: 0.75 | AC48: 0.75 | AD48: 0.75 | AE48: 0.75 | AF48: 0.75 | AG48: 0.75 | AH48: 0.75 | AI48: 0.75 | AJ48: 0.75 | AK48: 0.6 | AL48: 0.45 | AM48: 0.3 | AN48: 0.15 | AO48: 0 | AP48: 0 | AQ48: 0 | AR48: 0 | AS48: 0 | AT48: 0 | AU48: 0 | AV48: 0 | AW48: 0 | AX48: 0 | AY48: 0 | AZ48: 0 | BA48: 0 | BB48: 0 | BC48: 0 | BD48: 0 | BE48: 0 | BF48: 0 | BG48: 0 | BH48: 0 | BI48: 0 | BJ48: 0 | BK48: 0 | BL48: 0 | BM48: 0 | BN48: 0 | BO48: 0 | BP48: 0 | BQ48: 0
C50: Yr 1 | D50: =IF(D$46="Yes",$D$10,0) -> 0.75 | E50: 0.75 | F50: 0.75 | G50: 0.75 | H50: 0.75 | I50: 0.75 | J50: 0.75 | K50: 0.75 | L50: 0.75 | M50: 0.75 | N50: 0.75 | O50: 0.75 | P50: 0.75 | Q50: 0.75 | R50: 0.75 | S50: 0.75 | T50: 0.75 | U50: 0.75 | V50: 0.75 | W50: 0.75 | X50: 0.75 | Y50: 0.75 | Z50: 0.75 | AA50: 0.75 | AB50: 0.75 | AC50: 0.75 | AD50: 0.75 | AE50: 0 | AF50: 0 | AG50: 0 | AH50: 0 | AI50: 0 | AJ50: =IF(AJ$46="Yes",$D$10,0) -> 0 | AK50: 0 | AL50: 0 | AM50: 0 | AN50: 0 | AO50: 0 | AP50: 0 | AQ50: 0 | AR50: 0 | AS50: 0 | AT50: 0 | AU50: 0 | AV50: 0 | AW50: 0 | AX50: 0 | AY50: 0 | AZ50: 0 | BA50: 0 | BB50: 0 | BC50: 0 | BD50: 0 | BE50: 0 | BF50: 0 | BG50: 0 | BH50: 0 | BI50: 0 | BJ50: 0 | BK50: 0 | BL50: 0 | BM50: 0 | BN50: 0 | BO50: 0 | BP50: =IF(BP$46="Yes",$D$10,0) -> 0 | BQ50: 0 | BR50: 0 | BS50: 0 | BT50: 0 | BU50: 0 | BV50: 0 | BW50: 0
C51: Yr 2 | D51: =IF(E$46="Yes",$D$10,0) -> 0.75 | E51: 0.75 | F51: 0.75 | G51: 0.75 | H51: 0.75 | I51: 0.75 | J51: 0.75 | K51: 0.75 | L51: 0.75 | M51: 0.75 | N51: 0.75 | O51: 0.75 | P51: 0.75 | Q51: 0.75 | R51: 0.75 | S51: 0.75 | T51: 0.75 | U51: 0.75 | V51: 0.75 | W51: 0.75 | X51: 0.75 | Y51: 0.75 | Z51: 0.75 | AA51: 0.75 | AB51: 0.75 | AC51: 0.75 | AD51: 0 | AE51: 0 | AF51: 0 | AG51: 0 | AH51: 0 | AI51: 0 | AJ51: =IF(AK$46="Yes",$D$10,0) -> 0 | AK51: 0 | AL51: 0 | AM51: 0 | AN51: 0 | AO51: 0 | AP51: 0 | AQ51: 0 | AR51: 0 | AS51: 0 | AT51: 0 | AU51: 0 | AV51: 0 | AW51: 0 | AX51: 0 | AY51: 0 | AZ51: 0 | BA51: 0 | BB51: 0 | BC51: 0 | BD51: 0 | BE51: 0 | BF51: 0 | BG51: 0 | BH51: 0 | BI51: 0 | BJ51: 0 | BK51: 0 | BL51: 0 | BM51: 0 | BN51: 0 | BO51: 0 | BP51: =IF(BQ$46="Yes",$D$10,0) -> 0 | BQ51: 0 | BR51: 0 | BS51: 0 | BT51: 0 | BU51: 0 | BV51: 0 | BW51: 0
C52: Yr 3 | D52: =IF(F$46="Yes",$D$10,0) -> 0.75 | E52: 0.75 | F52: 0.75 | G52: 0.75 | H52: 0.75 | I52: 0.75 | J52: 0.75 | K52: 0.75 | L52: 0.75 | M52: 0.75 | N52: 0.75 | O52: 0.75 | P52: 0.75 | Q52: 0.75 | R52: 0.75 | S52: 0.75 | T52: 0.75 | U52: 0.75 | V52: 0.75 | W52: 0.75 | X52: 0.75 | Y52: 0.75 | Z52: 0.75 | AA52: 0.75 | AB52: 0.75 | AC52: 0 | AD52: 0 | AE52: 0 | AF52: 0 | AG52: 0 | AH52: 0 | AI52: 0 | AJ52: =IF(AL$46="Yes",$D$10,0) -> 0 | AK52: 0 | AL52: 0 | AM52: 0 | AN52: 0 | AO52: 0 | AP52: 0 | AQ52: 0 | AR52: 0 | AS52: 0 | AT52: 0 | AU52: 0 | AV52: 0 | AW52: 0 | AX52: 0 | AY52: 0 | AZ52: 0 | BA52: 0 | BB52: 0 | BC52: 0 | BD52: 0 | BE52: 0 | BF52: 0 | BG52: 0 | BH52: 0 | BI52: 0 | BJ52: 0 | BK52: 0 | BL52: 0 | BM52: 0 | BN52: 0 | BO52: 0 | BP52: =IF(BR$46="Yes",$D$10,0) -> 0 | BQ52: 0 | BR52: 0 | BS52: 0 | BT52: 0 | BU52: 0 | BV52: 0 | BW52: 0
C53: Yr 4 | D53: =IF(G$46="Yes",$D$10,0) -> 0.75 | E53: 0.75 | F53: 0.75 | G53: 0.75 | H53: 0.75 | I53: 0.75 | J53: 0.75 | K53: 0.75 | L53: 0.75 | M53: 0.75 | N53: 0.75 | O53: 0.75 | P53: 0.75 | Q53: 0.75 | R53: 0.75 | S53: 0.75 | T53: 0.75 | U53: 0.75 | V53: 0.75 | W53: 0.75 | X53: 0.75 | Y53: 0.75 | Z53: 0.75 | AA53: 0.75 | AB53: 0 | AC53: 0 | AD53: 0 | AE53: 0 | AF53: 0 | AG53: 0 | AH53: 0 | AI53: 0 | AJ53: =IF(AM$46="Yes",$D$10,0) -> 0 | AK53: 0 | AL53: 0 | AM53: 0 | AN53: 0 | AO53: 0 | AP53: 0 | AQ53: 0 | AR53: 0 | AS53: 0 | AT53: 0 | AU53: 0 | AV53: 0 | AW53: 0 | AX53: 0 | AY53: 0 | AZ53: 0 | BA53: 0 | BB53: 0 | BC53: 0 | BD53: 0 | BE53: 0 | BF53: 0 | BG53: 0 | BH53: 0 | BI53: 0 | BJ53: 0 | BK53: 0 | BL53: 0 | BM53: 0 | BN53: 0 | BO53: 0 | BP53: =IF(BS$46="Yes",$D$10,0) -> 0 | BQ53: 0 | BR53: 0 | BS53: 0 | BT53: 0 | BU53: 0 | BV53: 0 | BW53: 0
C54: Yr 5 | D54: =IF(H$46="Yes",$D$10,0) -> 0.75 | E54: 0.75 | F54: 0.75 | G54: 0.75 | H54: 0.75 | I54: 0.75 | J54: 0.75 | K54: 0.75 | L54: 0.75 | M54: 0.75 | N54: 0.75 | O54: 0.75 | P54: 0.75 | Q54: 0.75 | R54: 0.75 | S54: 0.75 | T54: 0.75 | U54: 0.75 | V54: 0.75 | W54: 0.75 | X54: 0.75 | Y54: 0.75 | Z54: 0.75 | AA54: 0 | AB54: 0 | AC54: 0 | AD54: 0 | AE54: 0 | AF54: 0 | AG54: 0 | AH54: 0 | AI54: 0 | AJ54: =IF(AN$46="Yes",$D$10,0) -> 0 | AK54: 0 | AL54: 0 | AM54: 0 | AN54: 0 | AO54: 0 | AP54: 0 | AQ54: 0 | AR54: 0 | AS54: 0 | AT54: 0 | AU54: 0 | AV54: 0 | AW54: 0 | AX54: 0 | AY54: 0 | AZ54: 0 | BA54: 0 | BB54: 0 | BC54: 0 | BD54: 0 | BE54: 0 | BF54: 0 | BG54: 0 | BH54: 0 | BI54: 0 | BJ54: 0 | BK54: 0 | BL54: 0 | BM54: 0 | BN54: 0 | BO54: 0 | BP54: =IF(BT$46="Yes",$D$10,0) -> 0 | BQ54: 0 | BR54: 0 | BS54: 0 | BT54: 0 | BU54: 0 | BV54: 0 | BW54: 0
D57: =((($N$65*(SQRT(D$20))*$D$13))) -> 2.026387525 | E57: =((($N$65*(SQRT(E$20))*$D$13))) -> 2.000897359 | F57: =((($N$65*(SQRT(F$20))*$D$13))) -> 1.975078247 | G57: =((($N$65*(SQRT(G$20))*$D$13))) -> 1.948917115 | H57: =((($N$65*(SQRT(H$20))*$D$13))) -> 1.9224 | I57: =((($N$65*(SQRT(I$20))*$D$13))) -> 1.895511963 | J57: =((($N$65*(SQRT(J$20))*$D$13))) -> 1.868236987 | K57: =((($N$65*(SQRT(K$20))*$D$13))) -> 1.840557872 | L57: =((($N$65*(SQRT(L$20))*$D$13))) -> 1.812456102 | M57: =((($N$65*(SQRT(M$20))*$D$13))) -> 1.783911702 | N57: =((($N$65*(SQRT(N$20))*$D$13))) -> 1.754903074 | O57: =((($N$65*(SQRT(O$20))*$D$13))) -> 1.725406804 | P57: =((($N$65*(SQRT(P$20))*$D$13))) -> 1.69539744 | Q57: =((($N$65*(SQRT(Q$20))*$D$13))) -> 1.664847236 | R57: =((($N$65*(SQRT(R$20))*$D$13))) -> 1.633725852 | S57: =((($N$65*(SQRT(S$20))*$D$13))) -> 1.602 | T57: =((($N$65*(SQRT(T$20))*$D$13))) -> 1.569633027 | U57: =((($N$65*(SQRT(U$20))*$D$13))) -> 1.53658442 | V57: =((($N$65*(SQRT(V$20))*$D$13))) -> 1.502809209 | W57: =((($N$65*(SQRT(W$20))*$D$13))) -> 1.468257253 | X57: =((($N$65*(SQRT(X$20))*$D$13))) -> 1.43287236 | Y57: =((($N$65*(SQRT(Y$20))*$D$13))) -> 1.396591222 | Z57: =((($N$65*(SQRT(Z$20))*$D$13))) -> 1.359342076 | AA57: =((($N$65*(SQRT(AA$20))*$D$13))) -> 1.321043042 | AB57: =((($N$65*(SQRT(AB$20))*$D$13))) -> 1.2816 | AC57: =((($N$65*(SQRT(AC$20))*$D$13))) -> 1.240903864 | AD57: =((($N$65*(SQRT(AD$20))*$D$13))) -> 1.198827027 | AE57: =((($N$65*(SQRT(AE$20))*$D$13))) -> 1.155218629 | AF57: =((($N$65*(SQRT(AF$20))*$D$13))) -> 1.109898157 | AG57: =((($N$65*(SQRT(AG$20))*$D$13))) -> 1.062646583 | AH57: =((($N$65*(SQRT(AH$20))*$D$13))) -> 1.013193762 | AI57: =((($N$65*(SQRT(AI$20))*$D$13))) -> 0.9612 | AJ57: =((($N$65*(SQRT(AJ$20))*$D$13))) -> 0.9062280508 | AK57: =((($N$65*(SQRT(AK$20))*$D$13))) -> 0.8476987201 | AL57: =((($N$65*(SQRT(AL$20))*$D$13))) -> 0.7848165136 | AM57: =((($N$65*(SQRT(AM$20))*$D$13))) -> 0.71643618 | AN57: =((($N$65*(SQRT(AN$20))*$D$13))) -> 0.6408 | AO57: =((($N$65*(SQRT(AO$20))*$D$13))) -> 0.5549490787 | AP57: =((($N$65*(SQRT(AP$20))*$D$13))) -> 0.4531140254 | AQ57: =((($N$65*(SQRT(AQ$20))*$D$13))) -> 0.3204 | AR57: =((($N$65*(SQRT(AR$20))*$D$13))) -> 0.1602 | AS57: =((($N$65*(SQRT(AS$20))*$D$13))) -> 0.1602 | AT57: =((($N$65*(SQRT(AT$20))*$D$13))) -> 0.1602 | AU57: =((($N$65*(SQRT(AU$20))*$D$13))) -> 0.1602 | AV57: =((($N$65*(SQRT(AV$20))*$D$13))) -> 0.1602 | AW57: =((($N$65*(SQRT(AW$20))*$D$13))) -> 0.1602 | AX57: =((($N$65*(SQRT(AX$20))*$D$13))) -> 0.1602 | AY57: =((($N$65*(SQRT(AY$20))*$D$13))) -> 0.1602 | AZ57: =((($N$65*(SQRT(AZ$20))*$D$13))) -> 0.1602 | BA57: =((($N$65*(SQRT(BA$20))*$D$13))) -> 0.1602 | BB57: =((($N$65*(SQRT(BB$20))*$D$13))) -> 0.1602 | BC57: =((($N$65*(SQRT(BC$20))*$D$13))) -> 0.1602 | BD57: =((($N$65*(SQRT(BD$20))*$D$13))) -> 0.1602 | BE57: =((($N$65*(SQRT(BE$20))*$D$13))) -> 0.1602 | BF57: =((($N$65*(SQRT(BF$20))*$D$13))) -> 0.1602 | BG57: =((($N$65*(SQRT(BG$20))*$D$13))) -> 0.1602 | BH57: =((($N$65*(SQRT(BH$20))*$D$13))) -> 0.1602 | BI57: =((($N$65*(SQRT(BI$20))*$D$13))) -> 0.1602 | BJ57: =((($N$65*(SQRT(BJ$20))*$D$13))) -> 0.1602 | BK57: =((($N$65*(SQRT(BK$20))*$D$13))) -> 0.1602 | BL57: =((($N$65*(SQRT(BL$20))*$D$13))) -> 0.1602 | BM57: =((($N$65*(SQRT(BM$20))*$D$13))) -> 0.1602 | BN57: =((($N$65*(SQRT(BN$20))*$D$13))) -> 0.1602 | BO57: =((($N$65*(SQRT(BO$20))*$D$13))) -> 0.1602 | BP57: =((($N$65*(SQRT(BP$20))*$D$13))) -> 0.1602 | BQ57: =((($N$65*(SQRT(BQ$20))*$D$13))) -> 0.1602
D58: =((((((1+$N$64)^(D$20)))))) -> 45.25925557 | E58: =((((((1+$N$64)^(E$20)))))) -> 41.14477779 | F58: =((((((1+$N$64)^(F$20)))))) -> 37.40434344 | G58: =((((((1+$N$64)^(G$20)))))) -> 34.00394859 | H58: =((((((1+$N$64)^(H$20)))))) -> 30.91268053 | I58: =((((((1+$N$64)^(I$20)))))) -> 28.10243685 | J58: =((((((1+$N$64)^(J$20)))))) -> 25.54766986 | K58: =((((((1+$N$64)^(K$20)))))) -> 23.22515442 | L58: =((((((1+$N$64)^(L$20)))))) -> 21.11377675 | M58: =((((((1+$N$64)^(M$20)))))) -> 19.1943425 | N58: =((((((1+$N$64)^(N$20)))))) -> 17.44940227 | O58: =((((((1+$N$64)^(O$20)))))) -> 15.86309297 | P58: =((((((1+$N$64)^(P$20)))))) -> 14.42099361 | Q58: =((((((1+$N$64)^(Q$20)))))) -> 13.10999419 | R58: =((((((1+$N$64)^(R$20)))))) -> 11.91817654 | S58: =((((((1+$N$64)^(S$20)))))) -> 10.83470594 | T58: =((((((1+$N$64)^(T$20)))))) -> 9.849732676 | U58: =((((((1+$N$64)^(U$20)))))) -> 8.954302433 | V58: =((((((1+$N$64)^(V$20)))))) -> 8.140274939 | W58: =((((((1+$N$64)^(W$20)))))) -> 7.400249944 | X58: =((((((1+$N$64)^(X$20)))))) -> 6.727499949 | Y58: =((((((1+$N$64)^(Y$20)))))) -> 6.115909045 | Z58: =((((((1+$N$64)^(Z$20)))))) -> 5.559917313 | AA58: =((((((1+$N$64)^(AA$20)))))) -> 5.054470285 | AB58: =((((((1+$N$64)^(AB$20)))))) -> 4.594972986 | AC58: =((((((1+$N$64)^(AC$20)))))) -> 4.177248169 | AD58: =((((((1+$N$64)^(AD$20)))))) -> 3.797498336 | AE58: =((((((1+$N$64)^(AE$20)))))) -> 3.452271214 | AF58: =((((((1+$N$64)^(AF$20)))))) -> 3.138428377 | AG58: =((((((1+$N$64)^(AG$20)))))) -> 2.853116706 | AH58: =((((((1+$N$64)^(AH$20)))))) -> 2.59374246 | AI58: =((((((1+$N$64)^(AI$20)))))) -> 2.357947691 | AJ58: =((((((1+$N$64)^(AJ$20)))))) -> 2.14358881 | AK58: =((((((1+$N$64)^(AK$20)))))) -> 1.9487171 | AL58: =((((((1+$N$64)^(AL$20)))))) -> 1.771561 | AM58: =((((((1+$N$64)^(AM$20)))))) -> 1.61051 | AN58: =((((((1+$N$64)^(AN$20)))))) -> 1.4641 | AO58: =((((((1+$N$64)^(AO$20)))))) -> 1.331 | AP58: =((((((1+$N$64)^(AP$20)))))) -> 1.21 | AQ58: =((((((1+$N$64)^(AQ$20)))))) -> 1.1 | AR58: =((((((1+$N$64)^(AR$20)))))) -> 1.024113689 | AS58: =((((((1+$N$64)^(AS$20)))))) -> 1.024113689 | AT58: =((((((1+$N$64)^(AT$20)))))) -> 1.024113689 | AU58: =((((((1+$N$64)^(AU$20)))))) -> 1.024113689 | AV58: =((((((1+$N$64)^(AV$20)))))) -> 1.024113689 | AW58: =((((((1+$N$64)^(AW$20)))))) -> 1.024113689 | AX58: =((((((1+$N$64)^(AX$20)))))) -> 1.024113689 | AY58: =((((((1+$N$64)^(AY$20)))))) -> 1.024113689 | AZ58: =((((((1+$N$64)^(AZ$20)))))) -> 1.024113689 | BA58: =((((((1+$N$64)^(BA$20)))))) -> 1.024113689 | BB58: =((((((1+$N$64)^(BB$20)))))) -> 1.024113689 | BC58: =((((((1+$N$64)^(BC$20)))))) -> 1.024113689 | BD58: =((((((1+$N$64)^(BD$20)))))) -> 1.024113689 | BE58: =((((((1+$N$64)^(BE$20)))))) -> 1.024113689 | BF58: =((((((1+$N$64)^(BF$20)))))) -> 1.024113689 | BG58: =((((((1+$N$64)^(BG$20)))))) -> 1.024113689 | BH58: =((((((1+$N$64)^(BH$20)))))) -> 1.024113689 | BI58: =((((((1+$N$64)^(BI$20)))))) -> 1.024113689 | BJ58: =((((((1+$N$64)^(BJ$20)))))) -> 1.024113689 | BK58: =((((((1+$N$64)^(BK$20)))))) -> 1.024113689 | BL58: =((((((1+$N$64)^(BL$20)))))) -> 1.024113689 | BM58: =((((((1+$N$64)^(BM$20)))))) -> 1.024113689 | BN58: =((((((1+$N$64)^(BN$20)))))) -> 1.024113689 | BO58: =((((((1+$N$64)^(BO$20)))))) -> 1.024113689 | BP58: =((((((1+$N$64)^(BP$20)))))) -> 1.024113689 | BQ58: =((((((1+$N$64)^(BQ$20)))))) -> 1.024113689
D59: =MAX((D58-D57),0.01) -> 43.23286804 | E59: 39.14388043 | F59: 35.4292652 | G59: 32.05503147 | H59: 28.99028053 | I59: 26.20692489 | J59: 23.67943287 | K59: 21.38459655 | L59: 19.30132064 | M59: 17.41043079 | N59: 15.69449919 | O59: 14.13768617 | P59: 12.72559617 | Q59: 11.44514696 | R59: 10.28445069 | S59: 9.232705943 | T59: 8.280099649 | U59: 7.417718012 | V59: 6.637465729 | W59: 5.931992692 | X59: 5.294627589 | Y59: 4.719317823 | Z59: 4.200575237 | AA59: 3.733427243 | AB59: 3.313372986 | AC59: 2.936344305 | AD59: 2.598671309 | AE59: 2.297052586 | AF59: 2.028530219 | AG59: 1.790470123 | AH59: 1.580548698 | AI59: 1.396747691 | AJ59: =MAX((AJ58-AJ57),0.01) -> 1.237360759 | AK59: 1.10101838 | AL59: 0.9867444864 | AM59: 0.89407382 | AN59: 0.8233 | AO59: 0.7760509213 | AP59: 0.7568859746 | AQ59: 0.7796 | AR59: 0.8639136891 | AS59: 0.8639136891 | AT59: 0.8639136891 | AU59: 0.8639136891 | AV59: 0.8639136891 | AW59: 0.8639136891 | AX59: 0.8639136891 | AY59: 0.8639136891 | AZ59: 0.8639136891 | BA59: 0.8639136891 | BB59: 0.8639136891 | BC59: 0.8639136891 | BD59: 0.8639136891 | BE59: 0.8639136891 | BF59: 0.8639136891 | BG59: 0.8639136891 | BH59: 0.8639136891 | BI59: 0.8639136891 | BJ59: 0.8639136891 | BK59: 0.8639136891 | BL59: 0.8639136891 | BM59: 0.8639136891 | BN59: 0.8639136891 | BO59: 0.8639136891 | BP59: =MAX((BP58-BP57),0.01) -> 0.8639136891 | BQ59: 0.8639136891
N61: Single-Period Sharpe is an inaccurate measure of RISK
C62: Portfolio | D62: Return | E62: Volatility | H62: Cash | N62: EM
C63: A | D63: 0.0325 | E63: 0.01 | H63: A | I63: B | J63: C | K63: D | L63: E | M63: F | N63: G
C64: B | D64: 0.05 | E64: 0.05 | G64: Return | H64: =D63 -> 0.0325 | I64: =D64 -> 0.05 | J64: =D65 -> 0.06 | K64: =D66 -> 0.07 | L64: =D67 -> 0.08 | M64: =D68 -> 0.09 | N64: =D69 -> 0.1
C65: C | D65: 0.06 | E65: 0.07 | G65: Risk | H65: =E63 -> 0.01 | I65: =E64 -> 0.05 | J65: =E65 -> 0.07 | K65: =E66 -> 0.1 | L65: =E67 -> 0.13 | M65: =E68 -> 0.16 | N65: =E69 -> 0.25
C66: D | D66: 0.07 | E66: 0.1 | G66: Sharpe 1yr | H66: =(H64-$H$68)/H65 -> 0.75 | I66: =(I64-$H$68)/I65 -> 0.5 | J66: =(J64-$H$68)/J65 -> 0.5 | K66: =(K64-$H$68)/K65 -> 0.45 | L66: =(L64-$H$68)/L65 -> 0.4230769231 | M66: =(M64-$H$68)/M65 -> 0.40625 | N66: =(N64-$H$68)/N65 -> 0.3
C67: E | D67: 0.08 | E67: 0.13
C68: F | D68: 0.09 | E68: 0.16 | G68: RFR | H68: 0.025
C69: G | D69: 0.1 | E69: 0.25

Sheet Sheet2
C9: 285869
C10: 67347
C11: 108976
C12: =SUM(C9:C11) -> 462192
